Workbook

Sheet Tabelle1
E2: Hindernisslauf | H2: Farmerwalk | K2: Reifenweitwurf | N2: Gummisiefelweitwurf | Q2: Palette | T2: =R3 -> Reifenrollen | AB2: =Z3 -> Zusatz 1 | AE2: =AC3 -> Zusatz 2
A3: Startnummer | B3: Name | C3: Hindernisslauf Zeit | D3: Punkte HNL | E3: Rang HNL | F3: Farmerwalk | G3: Punke FW | H3: Rang FW | I3: Reifenweitwurf | J3: Punkte RW | K3: Rang RW | L3: Gummisiefelweitwurf | M3: Punkte GW | N3: Rang GW | O3: Palette | P3: Punkte PH | Q3: Rang PH | R3: Reifenrollen | S3: Punkte RR | T3: Rang RR | U3: Rechnungssummer | V3: heißer Draht | W3: Zeitstrafe | X3: Punkte hD | Y3: Rang hD | Z3: Zusatz 1 | AA3: Punke Z1 | AB3: Rang Z1 | AC3: Zusatz 2 | AD3: Punkte Z2 | AE3: Rang Z2 | AF3: Gesamtpunkte | AG3: Rang
C4: Zeit in sec. | F4: Zeit in sec | H4: =H2 -> Farmerwalk | I4: in m | K4: =K2 -> Reifenweitwurf | L4: in m | N4: =N2 -> Gummisiefelweitwurf | O4: Zeit in sec | Q4: =Q2 -> Palette | R4: Zeit in sec | T4: =T2 -> Reifenrollen | U4: gesamt | V4: Zeit in sec. | W4: in berührungen | Z4: positiv | AB4: =AB2 -> Zusatz 1 | AC4: negativ | AE4: =AE2 -> Zusatz 2
A5: 1M | B5: Stefan Lehner | C5: 27 | D5: =IF(Tabelle1!$C5="","",Eckdaten!$A$2-Tabelle1!$E5+1) -> 42 | E5: =IF(C5=0,"",RANK(C5,$C$5:$C$54,1)) -> 9 | F5: 17.85 | G5: =IF(Tabelle1!$F5="","",Eckdaten!$A$2-Tabelle1!$H5+1) -> 49 | H5: =IF(F5=0,"",RANK(F5,$F$5:$F$54,1)) -> 2 | J5: =IF(Tabelle1!$I5="","",Eckdaten!$A$2-K5+1) ->  | K5: =IF(I5=0,"",RANK(I5,$I$5:$I$54,)) ->  | L5: 24.1 | M5: =IF(L5="","",Eckdaten!$A$2-N5+1) -> 44 | N5: =IF(L5=0,"",RANK(L5,$L$5:$L$54)) -> 7 | O5: 34.07 | P5: =IF(Tabelle1!$O5="","",Eckdaten!$A$2-Q5+1) -> 43 | Q5: =IF(O5=0,"",RANK(O5,$O$5:$O$54)) -> 8 | R5: 11.33 | S5: =IF(R5="","",Eckdaten!$A$2-T5+1) -> 47 | T5: =IF(R5=0,"",RANK(R5,$R$5:$R$54,1)) -> 4 | U5: =IF(V5="","",V5+(W5*Eckdaten!$A$9)) -> 30.79 | V5: 30.79 | X5: =IF(V5="","",Eckdaten!$A$2-Y5+1) -> 50 | Y5: =IF(ISERROR(IF(U5=0,"",RANK(U5,$U$5:$U$54,1))),"",IF(U5=0,"",RANK(U5,$U$5:$U$54,1))) -> 1 | Z5: 16.78 | AA5: =IF(Tabelle1!$Z5="","",Eckdaten!$A$2-Tabelle1!$AB5+1) -> 50 | AB5: =IF(Z5=0,"",RANK(Z5,$Z$5:$Z$54,1)) -> 1 | AD5: =IF(Tabelle1!$AC5="","",Eckdaten!$A$2-AE5+1) ->  | AE5: =IF(AC5=0,"",RANK(AC5,$AC$5:$AC$54)) ->  | AF5: =SUM(Tabelle1!$S5,Tabelle1!$P5,Tabelle1!$M5,Tabelle1!$J5,Tabelle1!$G5,Tabelle1!$D5,AA5,AD5,X5) -> 325 | AG5: =IF(AF5=0,"",RANK(AF5,$AF$5:$AF$54)) -> 1
A6: 2M | B6: David Gruber | C6: 28.44 | D6: =IF(Tabelle1!$C6="","",Eckdaten!$A$2-Tabelle1!$E6+1) -> 39 | E6: =IF(C6=0,"",RANK(C6,$C$5:$C$54,1)) -> 12 | F6: 19.37 | G6: =IF(Tabelle1!$F6="","",Eckdaten!$A$2-Tabelle1!$H6+1) -> 45 | H6: =IF(F6=0,"",RANK(F6,$F$5:$F$54,1)) -> 6 | J6: =IF(Tabelle1!$I6="","",Eckdaten!$A$2-K6+1) ->  | K6: =IF(I6=0,"",RANK(I6,$I$5:$I$54,)) ->  | L6: 22.6 | M6: =IF(L6="","",Eckdaten!$A$2-N6+1) -> 38 | N6: =IF(L6=0,"",RANK(L6,$L$5:$L$54)) -> 13 | O6: 45.67 | P6: =IF(Tabelle1!$O6="","",Eckdaten!$A$2-Q6+1) -> 49 | Q6: =IF(O6=0,"",RANK(O6,$O$5:$O$54)) -> 2 | R6: 12.11 | S6: =IF(R6="","",Eckdaten!$A$2-T6+1) -> 46 | T6: =IF(R6=0,"",RANK(R6,$R$5:$R$54,1)) -> 5 | U6: =IF(V6="","",V6+(W6*Eckdaten!$A$9)) -> 54.45 | V6: 54.45 | X6: =IF(V6="","",Eckdaten!$A$2-Y6+1) -> 37 | Y6: 14 | Z6: 23.42 | AA6: =IF(Tabelle1!$Z6="","",Eckdaten!$A$2-Tabelle1!$AB6+1) -> 47 | AB6: =IF(Z6=0,"",RANK(Z6,$Z$5:$Z$54,1)) -> 4 | AD6: =IF(Tabelle1!$AC6="","",Eckdaten!$A$2-AE6+1) ->  | AE6: =IF(AC6=0,"",RANK(AC6,$AC$5:$AC$54)) ->  | AF6: =SUM(Tabelle1!$S6,Tabelle1!$P6,Tabelle1!$M6,Tabelle1!$J6,Tabelle1!$G6,Tabelle1!$D6,AA6,AD6,X6) -> 301 | AG6: =IF(AF6=0,"",RANK(AF6,$AF$5:$AF$54)) -> 7
A7: 3M | B7: Alois Matha | C7: 27.14 | D7: =IF(Tabelle1!$C7="","",Eckdaten!$A$2-Tabelle1!$E7+1) -> 41 | E7: 10 | F7: 19.38 | G7: =IF(Tabelle1!$F7="","",Eckdaten!$A$2-Tabelle1!$H7+1) -> 44 | H7: 7 | J7: =IF(Tabelle1!$I7="","",Eckdaten!$A$2-K7+1) ->  | L7: 25.9 | M7: =IF(L7="","",Eckdaten!$A$2-N7+1) -> 50 | N7: 1 | O7: 24.36 | P7: =IF(Tabelle1!$O7="","",Eckdaten!$A$2-Q7+1) -> 34 | Q7: 17 | R7: 12.53 | S7: =IF(R7="","",Eckdaten!$A$2-T7+1) -> 44 | T7: 7 | U7: =IF(V7="","",V7+(W7*Eckdaten!$A$9)) -> 48.61 | V7: 48.61 | X7: =IF(V7="","",Eckdaten!$A$2-Y7+1) -> 41 | Y7: 10 | Z7: 23.09 | AA7: =IF(Tabelle1!$Z7="","",Eckdaten!$A$2-Tabelle1!$AB7+1) -> 48 | AB7: 3 | AD7: =IF(Tabelle1!$AC7="","",Eckdaten!$A$2-AE7+1) ->  | AF7: =SUM(Tabelle1!$S7,Tabelle1!$P7,Tabelle1!$M7,Tabelle1!$J7,Tabelle1!$G7,Tabelle1!$D7,AA7,AD7,X7) -> 302 | AG7: 6
A8: 4M | B8: Martin Reisinger | C8: 36.85 | D8: =IF(Tabelle1!$C8="","",Eckdaten!$A$2-Tabelle1!$E8+1) -> 34 | E8: 17 | F8: 21.26 | G8: =IF(Tabelle1!$F8="","",Eckdaten!$A$2-Tabelle1!$H8+1) -> 39 | H8: 12 | J8: =IF(Tabelle1!$I8="","",Eckdaten!$A$2-K8+1) ->  | L8: 18.2 | M8: =IF(L8="","",Eckdaten!$A$2-N8+1) -> 34 | N8: 17 | O8: 37.59 | P8: =IF(Tabelle1!$O8="","",Eckdaten!$A$2-Q8+1) -> 46 | Q8: 5 | R8: 14.12 | S8: =IF(R8="","",Eckdaten!$A$2-T8+1) -> 37 | T8: 14 | U8: =IF(V8="","",V8+(W8*Eckdaten!$A$9)) -> 64.42 | V8: 64.42 | X8: =IF(V8="","",Eckdaten!$A$2-Y8+1) -> 33 | Y8: 18 | Z8: 47.58 | AA8: =IF(Tabelle1!$Z8="","",Eckdaten!$A$2-Tabelle1!$AB8+1) -> 32 | AB8: 19 | AD8: =IF(Tabelle1!$AC8="","",Eckdaten!$A$2-AE8+1) ->  | AF8: =SUM(Tabelle1!$S8,Tabelle1!$P8,Tabelle1!$M8,Tabelle1!$J8,Tabelle1!$G8,Tabelle1!$D8,AA8,AD8,X8) -> 255 | AG8: 18
A9: 5M | D9: =IF(Tabelle1!$C9="","",Eckdaten!$A$2-Tabelle1!$E9+1) ->  | G9: =IF(Tabelle1!$F9="","",Eckdaten!$A$2-Tabelle1!$H9+1) ->  | J9: =IF(Tabelle1!$I9="","",Eckdaten!$A$2-K9+1) ->  | M9: =IF(L9="","",Eckdaten!$A$2-N9+1) ->  | P9: =IF(Tabelle1!$O9="","",Eckdaten!$A$2-Q9+1) ->  | S9: =IF(R9="","",Eckdaten!$A$2-T9+1) ->  | U9: =IF(V9="","",V9+(W9*Eckdaten!$A$9)) ->  | X9: =IF(V9="","",Eckdaten!$A$2-Y9+1) ->  | AA9: =IF(Tabelle1!$Z9="","",Eckdaten!$A$2-Tabelle1!$AB9+1) ->  | AD9: =IF(Tabelle1!$AC9="","",Eckdaten!$A$2-AE9+1) ->  | AF9: =SUM(Tabelle1!$S9,Tabelle1!$P9,Tabelle1!$M9,Tabelle1!$J9,Tabelle1!$G9,Tabelle1!$D9,AA9,AD9,X9) -> 0
A10: 6M | B10: Thomas Altmann | C10: 34.65 | D10: =IF(Tabelle1!$C10="","",Eckdaten!$A$2-Tabelle1!$E10+1) -> 36 | E10: 15 | F10: 18.21 | G10: =IF(Tabelle1!$F10="","",Eckdaten!$A$2-Tabelle1!$H10+1) -> 48 | H10: 3 | J10: =IF(Tabelle1!$I10="","",Eckdaten!$A$2-K10+1) ->  | L10: 0.1 | M10: =IF(L10="","",Eckdaten!$A$2-N10+1) -> 32 | N10: 19 | O10: 26.95 | P10: =IF(Tabelle1!$O10="","",Eckdaten!$A$2-Q10+1) -> 37 | Q10: 14 | R10: 15.82 | S10: =IF(R10="","",Eckdaten!$A$2-T10+1) -> 34 | T10: 17 | U10: =IF(V10="","",V10+(W10*Eckdaten!$A$9)) -> 47.16 | V10: 47.16 | X10: =IF(V10="","",Eckdaten!$A$2-Y10+1) -> 43 | Y10: 8 | Z10: 34.72 | AA10: =IF(Tabelle1!$Z10="","",Eckdaten!$A$2-Tabelle1!$AB10+1) -> 35 | AB10: 16 | AD10: =IF(Tabelle1!$AC10="","",Eckdaten!$A$2-AE10+1) ->  | AF10: =SUM(Tabelle1!$S10,Tabelle1!$P10,Tabelle1!$M10,Tabelle1!$J10,Tabelle1!$G10,Tabelle1!$D10,AA10,AD10,X10) -> 265 | AG10: 14
A11: 7M | B11: Stefan Obergruber | C11: 26.67 | D11: =IF(Tabelle1!$C11="","",Eckdaten!$A$2-Tabelle1!$E11+1) -> 43 | E11: 8 | F11: 26.05 | G11: =IF(Tabelle1!$F11="","",Eckdaten!$A$2-Tabelle1!$H11+1) -> 32 | H11: 19 | J11: =IF(Tabelle1!$I11="","",Eckdaten!$A$2-K11+1) ->  | L11: 21.1 | M11: =IF(L11="","",Eckdaten!$A$2-N11+1) -> 36 | N11: 15 | O11: 28.17 | P11: =IF(Tabelle1!$O11="","",Eckdaten!$A$2-Q11+1) -> 40 | Q11: 11 | R11: 14.57 | S11: =IF(R11="","",Eckdaten!$A$2-T11+1) -> 35 | T11: =IF(R11=0,"",RANK(R11,$R$5:$R$54,1)) -> 16 | U11: =IF(V11="","",V11+(W11*Eckdaten!$A$9)) -> 38.2 | V11: 38.2 | X11: =IF(V11="","",Eckdaten!$A$2-Y11+1) -> 47 | Y11: 4 | Z11: 25.86 | AA11: =IF(Tabelle1!$Z11="","",Eckdaten!$A$2-Tabelle1!$AB11+1) -> 45 | AB11: 6 | AD11: =IF(Tabelle1!$AC11="","",Eckdaten!$A$2-AE11+1) ->  | AF11: =SUM(Tabelle1!$S11,Tabelle1!$P11,Tabelle1!$M11,Tabelle1!$J11,Tabelle1!$G11,Tabelle1!$D11,AA11,AD11,X11) -> 278 | AG11: 13
A12: 8M | B12: Kastl Max | C12: 32.84 | D12: =IF(Tabelle1!$C12="","",Eckdaten!$A$2-Tabelle1!$E12+1) -> 37 | E12: 14 | F12: 21.24 | G12: =IF(Tabelle1!$F12="","",Eckdaten!$A$2-Tabelle1!$H12+1) -> 40 | H12: 11 | J12: =IF(Tabelle1!$I12="","",Eckdaten!$A$2-K12+1) ->  | L12: 24.6 | M12: =IF(L12="","",Eckdaten!$A$2-N12+1) -> 47 | N12: 4 | O12: 38.3 | P12: =IF(Tabelle1!$O12="","",Eckdaten!$A$2-Q12+1) -> 47 | Q12: 4 | R12: 13.25 | S12: =IF(R12="","",Eckdaten!$A$2-T12+1) -> 41 | T12: 10 | U12: =IF(V12="","",V12+(W12*Eckdaten!$A$9)) -> 38.16 | V12: 38.16 | X12: =IF(V12="","",Eckdaten!$A$2-Y12+1) -> 48 | Y12: 3 | Z12: 25.93 | AA12: =IF(Tabelle1!$Z12="","",Eckdaten!$A$2-Tabelle1!$AB12+1) -> 44 | AB12: 7 | AD12: =IF(Tabelle1!$AC12="","",Eckdaten!$A$2-AE12+1) ->  | AF12: =SUM(Tabelle1!$S12,Tabelle1!$P12,Tabelle1!$M12,Tabelle1!$J12,Tabelle1!$G12,Tabelle1!$D12,AA12,AD12,X12) -> 304 | AG12: 5
A13: 9M | B13: Marco Hofstätter | C13: 25.14 | D13: =IF(Tabelle1!$C13="","",Eckdaten!$A$2-Tabelle1!$E13+1) -> 48 | E13: 3 | F13: 17.27 | G13: =IF(Tabelle1!$F13="","",Eckdaten!$A$2-Tabelle1!$H13+1) -> 50 | H13: 1 | J13: =IF(Tabelle1!$I13="","",Eckdaten!$A$2-K13+1) ->  | L13: 24.3 | M13: =IF(L13="","",Eckdaten!$A$2-N13+1) -> 45 | N13: 6 | O13: 46.35 | P13: =IF(Tabelle1!$O13="","",Eckdaten!$A$2-Q13+1) -> 50 | Q13: 1 | R13: 10.57 | S13: =IF(R13="","",Eckdaten!$A$2-T13+1) -> 49 | T13: 2 | U13: =IF(V13="","",V13+(W13*Eckdaten!$A$9)) -> 48.58 | V13: 48.58 | X13: =IF(V13="","",Eckdaten!$A$2-Y13+1) -> 42 | Y13: 9 | Z13: 35.13 | AA13: =IF(Tabelle1!$Z13="","",Eckdaten!$A$2-Tabelle1!$AB13+1) -> 34 | AB13: 17 | AD13: =IF(Tabelle1!$AC13="","",Eckdaten!$A$2-AE13+1) ->  | AF13: =SUM(Tabelle1!$S13,Tabelle1!$P13,Tabelle1!$M13,Tabelle1!$J13,Tabelle1!$G13,Tabelle1!$D13,AA13,AD13,X13) -> 318 | AG13: 3
A14: 10M | D14: =IF(Tabelle1!$C14="","",Eckdaten!$A$2-Tabelle1!$E14+1) ->  | G14: =IF(Tabelle1!$F14="","",Eckdaten!$A$2-Tabelle1!$H14+1) ->  | J14: =IF(Tabelle1!$I14="","",Eckdaten!$A$2-K14+1) ->  | M14: =IF(L14="","",Eckdaten!$A$2-N14+1) ->  | P14: =IF(Tabelle1!$O14="","",Eckdaten!$A$2-Q14+1) ->  | S14: =IF(R14="","",Eckdaten!$A$2-T14+1) ->  | U14: =IF(V14="","",V14+(W14*Eckdaten!$A$9)) ->  | X14: =IF(V14="","",Eckdaten!$A$2-Y14+1) ->  | AA14: =IF(Tabelle1!$Z14="","",Eckdaten!$A$2-Tabelle1!$AB14+1) ->  | AD14: =IF(Tabelle1!$AC14="","",Eckdaten!$A$2-AE14+1) ->  | AF14: =SUM(Tabelle1!$S14,Tabelle1!$P14,Tabelle1!$M14,Tabelle1!$J14,Tabelle1!$G14,Tabelle1!$D14,AA14,AD14,X14) -> 0
A15: 11M | B15: Christian Pühringer | C15: 47.11 | D15: =IF(Tabelle1!$C15="","",Eckdaten!$A$2-Tabelle1!$E15+1) -> 32 | E15: 19 | F15: 25.98 | G15: =IF(Tabelle1!$F15="","",Eckdaten!$A$2-Tabelle1!$H15+1) -> 33 | H15: 18 | J15: =IF(Tabelle1!$I15="","",Eckdaten!$A$2-K15+1) ->  | L15: 24.8 | M15: =IF(L15="","",Eckdaten!$A$2-N15+1) -> 48 | N15: 3 | O15: 34.82 | P15: =IF(Tabelle1!$O15="","",Eckdaten!$A$2-Q15+1) -> 44 | Q15: 7 | R15: 23.83 | S15: =IF(R15="","",Eckdaten!$A$2-T15+1) -> 32 | T15: 19 | U15: =IF(V15="","",V15+(W15*Eckdaten!$A$9)) -> 70.13 | V15: 70.13 | X15: =IF(V15="","",Eckdaten!$A$2-Y15+1) -> 32 | Y15: 19 | Z15: 26.6 | AA15: =IF(Tabelle1!$Z15="","",Eckdaten!$A$2-Tabelle1!$AB15+1) -> 43 | AB15: 8 | AD15: =IF(Tabelle1!$AC15="","",Eckdaten!$A$2-AE15+1) ->  | AF15: =SUM(Tabelle1!$S15,Tabelle1!$P15,Tabelle1!$M15,Tabelle1!$J15,Tabelle1!$G15,Tabelle1!$D15,AA15,AD15,X15) -> 264 | AG15: 16
A16: 12M | D16: =IF(Tabelle1!$C16="","",Eckdaten!$A$2-Tabelle1!$E16+1) ->  | G16: =IF(Tabelle1!$F16="","",Eckdaten!$A$2-Tabelle1!$H16+1) ->  | J16: =IF(Tabelle1!$I16="","",Eckdaten!$A$2-K16+1) ->  | M16: =IF(L16="","",Eckdaten!$A$2-N16+1) ->  | P16: =IF(Tabelle1!$O16="","",Eckdaten!$A$2-Q16+1) ->  | S16: =IF(R16="","",Eckdaten!$A$2-T16+1) ->  | U16: =IF(V16="","",V16+(W16*Eckdaten!$A$9)) ->  | X16: =IF(V16="","",Eckdaten!$A$2-Y16+1) ->  | AA16: =IF(Tabelle1!$Z16="","",Eckdaten!$A$2-Tabelle1!$AB16+1) ->  | AD16: =IF(Tabelle1!$AC16="","",Eckdaten!$A$2-AE16+1) ->  | AF16: =SUM(Tabelle1!$S16,Tabelle1!$P16,Tabelle1!$M16,Tabelle1!$J16,Tabelle1!$G16,Tabelle1!$D16,AA16,AD16,X16) -> 0
A17: 13M | B17: Thomas Lindorfer | C17: 25.19 | D17: =IF(Tabelle1!$C17="","",Eckdaten!$A$2-Tabelle1!$E17+1) -> 47 | E17: 4 | F17: 18.95 | G17: =IF(Tabelle1!$F17="","",Eckdaten!$A$2-Tabelle1!$H17+1) -> 46 | H17: 5 | J17: =IF(Tabelle1!$I17="","",Eckdaten!$A$2-K17+1) ->  | L17: 23.3 | M17: =IF(L17="","",Eckdaten!$A$2-N17+1) -> 41 | N17: 10 | O17: 30.14 | P17: =IF(Tabelle1!$O17="","",Eckdaten!$A$2-Q17+1) -> 42 | Q17: 9 | R17: 10.96 | S17: =IF(R17="","",Eckdaten!$A$2-T17+1) -> 48 | T17: 3 | U17: =IF(V17="","",V17+(W17*Eckdaten!$A$9)) -> 43.42 | V17: 43.42 | X17: =IF(V17="","",Eckdaten!$A$2-Y17+1) -> 45 | Y17: 6 | Z17: 22.76 | AA17: =IF(Tabelle1!$Z17="","",Eckdaten!$A$2-Tabelle1!$AB17+1) -> 49 | AB17: 2 | AD17: =IF(Tabelle1!$AC17="","",Eckdaten!$A$2-AE17+1) ->  | AF17: =SUM(Tabelle1!$S17,Tabelle1!$P17,Tabelle1!$M17,Tabelle1!$J17,Tabelle1!$G17,Tabelle1!$D17,AA17,AD17,X17) -> 318 | AG17: 3
A18: 14M | B18: Günther Pichler | C18: 32.03 | D18: =IF(Tabelle1!$C18="","",Eckdaten!$A$2-Tabelle1!$E18+1) -> 38 | E18: 13 | F18: 22.5 | G18: =IF(Tabelle1!$F18="","",Eckdaten!$A$2-Tabelle1!$H18+1) -> 35 | H18: 16 | J18: =IF(Tabelle1!$I18="","",Eckdaten!$A$2-K18+1) ->  | L18: 24.4 | M18: =IF(L18="","",Eckdaten!$A$2-N18+1) -> 46 | N18: 5 | O18: 12.16 | P18: =IF(Tabelle1!$O18="","",Eckdaten!$A$2-Q18+1) -> 32 | Q18: 19 | R18: 14.2 | S18: =IF(R18="","",Eckdaten!$A$2-T18+1) -> 36 | T18: 15 | U18: =IF(V18="","",V18+(W18*Eckdaten!$A$9)) -> 57.65 | V18: 57.65 | X18: =IF(V18="","",Eckdaten!$A$2-Y18+1) -> 36 | Y18: 15 | Z18: 46.95 | AA18: =IF(Tabelle1!$Z18="","",Eckdaten!$A$2-Tabelle1!$AB18+1) -> 33 | AB18: 18 | AD18: =IF(Tabelle1!$AC18="","",Eckdaten!$A$2-AE18+1) ->  | AF18: =SUM(Tabelle1!$S18,Tabelle1!$P18,Tabelle1!$M18,Tabelle1!$J18,Tabelle1!$G18,Tabelle1!$D18,AA18,AD18,X18) -> 256 | AG18: 17
A19: 15M | B19: Dominik Engleder | C19: 25.55 | D19: =IF(Tabelle1!$C19="","",Eckdaten!$A$2-Tabelle1!$E19+1) -> 46 | E19: 5 | F19: 18.5 | G19: =IF(Tabelle1!$F19="","",Eckdaten!$A$2-Tabelle1!$H19+1) -> 47 | H19: 4 | J19: =IF(Tabelle1!$I19="","",Eckdaten!$A$2-K19+1) ->  | L19: 23.4 | M19: =IF(L19="","",Eckdaten!$A$2-N19+1) -> 43 | N19: 8 | O19: 40.38 | P19: =IF(Tabelle1!$O19="","",Eckdaten!$A$2-Q19+1) -> 48 | Q19: 3 | R19: 10.41 | S19: =IF(R19="","",Eckdaten!$A$2-T19+1) -> 50 | T19: 1 | U19: =IF(V19="","",V19+(W19*Eckdaten!$A$9)) -> 35.81 | V19: 35.81 | X19: =IF(V19="","",Eckdaten!$A$2-Y19+1) -> 49 | Y19: 2 | Z19: 27.23 | AA19: =IF(Tabelle1!$Z19="","",Eckdaten!$A$2-Tabelle1!$AB19+1) -> 42 | AB19: 9 | AD19: =IF(Tabelle1!$AC19="","",Eckdaten!$A$2-AE19+1) ->  | AF19: =SUM(Tabelle1!$S19,Tabelle1!$P19,Tabelle1!$M19,Tabelle1!$J19,Tabelle1!$G19,Tabelle1!$D19,AA19,AD19,X19) -> 325 | AG19: 1
A20: 16M | B20: Markus Kraml | C20: 40.28 | D20: =IF(Tabelle1!$C20="","",Eckdaten!$A$2-Tabelle1!$E20+1) -> 33 | E20: 18 | F20: 22.13 | G20: =IF(Tabelle1!$F20="","",Eckdaten!$A$2-Tabelle1!$H20+1) -> 36 | H20: 15 | J20: =IF(Tabelle1!$I20="","",Eckdaten!$A$2-K20+1) ->  | L20: 22.8 | M20: =IF(L20="","",Eckdaten!$A$2-N20+1) -> 39 | N20: 12 | O20: 12.68 | P20: =IF(Tabelle1!$O20="","",Eckdaten!$A$2-Q20+1) -> 33 | Q20: 18 | R20: 18.29 | S20: =IF(R20="","",Eckdaten!$A$2-T20+1) -> 33 | T20: 18 | U20: =IF(V20="","",V20+(W20*Eckdaten!$A$9)) -> 53.59 | V20: 53.59 | X20: =IF(V20="","",Eckdaten!$A$2-Y20+1) -> 38 | Y20: 13 | Z20: 34.49 | AA20: =IF(Tabelle1!$Z20="","",Eckdaten!$A$2-Tabelle1!$AB20+1) -> 36 | AB20: 15 | AD20: =IF(Tabelle1!$AC20="","",Eckdaten!$A$2-AE20+1) ->  | AF20: =SUM(Tabelle1!$S20,Tabelle1!$P20,Tabelle1!$M20,Tabelle1!$J20,Tabelle1!$G20,Tabelle1!$D20,AA20,AD20,X20) -> 248 | AG20: 19
A21: 17M | B21: Christian Natschläger | C21: 35.5 | D21: =IF(Tabelle1!$C21="","",Eckdaten!$A$2-Tabelle1!$E21+1) -> 35 | E21: 16 | F21: 21.42 | G21: =IF(Tabelle1!$F21="","",Eckdaten!$A$2-Tabelle1!$H21+1) -> 38 | H21: 13 | J21: =IF(Tabelle1!$I21="","",Eckdaten!$A$2-K21+1) ->  | L21: 23.4 | M21: =IF(L21="","",Eckdaten!$A$2-N21+1) -> 43 | N21: 8 | O21: 24.46 | P21: =IF(Tabelle1!$O21="","",Eckdaten!$A$2-Q21+1) -> 35 | Q21: 16 | R21: 13.54 | S21: =IF(R21="","",Eckdaten!$A$2-T21+1) -> 40 | T21: 11 | U21: =IF(V21="","",V21+(W21*Eckdaten!$A$9)) -> 63.03 | V21: 63.03 | X21: =IF(V21="","",Eckdaten!$A$2-Y21+1) -> 34 | Y21: 17 | Z21: 27.48 | AA21: =IF(Tabelle1!$Z21="","",Eckdaten!$A$2-Tabelle1!$AB21+1) -> 40 | AB21: 11 | AD21: =IF(Tabelle1!$AC21="","",Eckdaten!$A$2-AE21+1) ->  | AF21: =SUM(Tabelle1!$S21,Tabelle1!$P21,Tabelle1!$M21,Tabelle1!$J21,Tabelle1!$G21,Tabelle1!$D21,AA21,AD21,X21) -> 265 | AG21: 14
A22: 18M | B22: Erich Haider | C22: 28.1 | D22: =IF(Tabelle1!$C22="","",Eckdaten!$A$2-Tabelle1!$E22+1) -> 40 | E22: 11 | F22: 19.88 | G22: =IF(Tabelle1!$F22="","",Eckdaten!$A$2-Tabelle1!$H22+1) -> 42 | H22: 9 | J22: =IF(Tabelle1!$I22="","",Eckdaten!$A$2-K22+1) ->  | L22: 23.1 | M22: =IF(L22="","",Eckdaten!$A$2-N22+1) -> 40 | N22: 11 | O22: 37.55 | P22: =IF(Tabelle1!$O22="","",Eckdaten!$A$2-Q22+1) -> 45 | Q22: 6 | R22: 12.39 | S22: =IF(R22="","",Eckdaten!$A$2-T22+1) -> 45 | T22: 6 | U22: =IF(V22="","",V22+(W22*Eckdaten!$A$9)) -> 52.15 | V22: 52.15 | X22: =IF(V22="","",Eckdaten!$A$2-Y22+1) -> 39 | Y22: 12 | Z22: 32.01 | AA22: =IF(Tabelle1!$Z22="","",Eckdaten!$A$2-Tabelle1!$AB22+1) -> 37 | AB22: 14 | AD22: =IF(Tabelle1!$AC22="","",Eckdaten!$A$2-AE22+1) ->  | AF22: =SUM(Tabelle1!$S22,Tabelle1!$P22,Tabelle1!$M22,Tabelle1!$J22,Tabelle1!$G22,Tabelle1!$D22,AA22,AD22,X22) -> 288 | AG22: 9
A23: 19M | B23: Bastian Enzenhofer | C23: 25.97 | D23: =IF(Tabelle1!$C23="","",Eckdaten!$A$2-Tabelle1!$E23+1) -> 45 | E23: 6 | F23: 24.63 | G23: =IF(Tabelle1!$F23="","",Eckdaten!$A$2-Tabelle1!$H23+1) -> 34 | H23: 17 | J23: =IF(Tabelle1!$I23="","",Eckdaten!$A$2-K23+1) ->  | L23: 20.8 | M23: =IF(L23="","",Eckdaten!$A$2-N23+1) -> 35 | N23: 16 | O23: 29.07 | P23: =IF(Tabelle1!$O23="","",Eckdaten!$A$2-Q23+1) -> 41 | Q23: 10 | R23: 12.85 | S23: =IF(R23="","",Eckdaten!$A$2-T23+1) -> 42 | T23: 9 | U23: =IF(V23="","",V23+(W23*Eckdaten!$A$9)) -> 39.8 | V23: 39.8 | X23: =IF(V23="","",Eckdaten!$A$2-Y23+1) -> 46 | Y23: 5 | Z23: 27.36 | AA23: =IF(Tabelle1!$Z23="","",Eckdaten!$A$2-Tabelle1!$AB23+1) -> 41 | AB23: 10 | AD23: =IF(Tabelle1!$AC23="","",Eckdaten!$A$2-AE23+1) ->  | AF23: =SUM(Tabelle1!$S23,Tabelle1!$P23,Tabelle1!$M23,Tabelle1!$J23,Tabelle1!$G23,Tabelle1!$D23,AA23,AD23,X23) -> 284 | AG23: 10
A24: 20M | B24: Patrick Martha | C24: 26.29 | D24: =IF(Tabelle1!$C24="","",Eckdaten!$A$2-Tabelle1!$E24+1) -> 44 | E24: 7 | F24: 20.89 | G24: =IF(Tabelle1!$F24="","",Eckdaten!$A$2-Tabelle1!$H24+1) -> 41 | H24: 10 | J24: =IF(Tabelle1!$I24="","",Eckdaten!$A$2-K24+1) ->  | L24: 25 | M24: =IF(L24="","",Eckdaten!$A$2-N24+1) -> 49 | N24: 2 | O24: 27.12 | P24: =IF(Tabelle1!$O24="","",Eckdaten!$A$2-Q24+1) -> 38 | Q24: 13 | R24: 13.56 | S24: =IF(R24="","",Eckdaten!$A$2-T24+1) -> 39 | T24: 12 | U24: =IF(V24="","",V24+(W24*Eckdaten!$A$9)) -> 46.51 | V24: 46.51 | X24: =IF(V24="","",Eckdaten!$A$2-Y24+1) -> 44 | Y24: 7 | Z24: 31.85 | AA24: =IF(Tabelle1!$Z24="","",Eckdaten!$A$2-Tabelle1!$AB24+1) -> 38 | AB24: 13 | AD24: =IF(Tabelle1!$AC24="","",Eckdaten!$A$2-AE24+1) ->  | AF24: =SUM(Tabelle1!$S24,Tabelle1!$P24,Tabelle1!$M24,Tabelle1!$J24,Tabelle1!$G24,Tabelle1!$D24,AA24,AD24,X24) -> 293 | AG24: 8
A25: 21M | B25: Mario Gahleitern | C25: 24.11 | D25: =IF(Tabelle1!$C25="","",Eckdaten!$A$2-Tabelle1!$E25+1) -> 50 | E25: 1 | F25: 21.93 | G25: =IF(Tabelle1!$F25="","",Eckdaten!$A$2-Tabelle1!$H25+1) -> 37 | H25: 14 | J25: =IF(Tabelle1!$I25="","",Eckdaten!$A$2-K25+1) ->  | L25: 22.3 | M25: =IF(L25="","",Eckdaten!$A$2-N25+1) -> 37 | N25: 14 | O25: 26.67 | P25: =IF(Tabelle1!$O25="","",Eckdaten!$A$2-Q25+1) -> 36 | Q25: 15 | R25: 13.61 | S25: =IF(R25="","",Eckdaten!$A$2-T25+1) -> 38 | T25: 13 | U25: =IF(V25="","",V25+(W25*Eckdaten!$A$9)) -> 51.47 | V25: 51.47 | X25: =IF(V25="","",Eckdaten!$A$2-Y25+1) -> 40 | Y25: 11 | Z25: 25.56 | AA25: =IF(Tabelle1!$Z25="","",Eckdaten!$A$2-Tabelle1!$AB25+1) -> 46 | AB25: 5 | AD25: =IF(Tabelle1!$AC25="","",Eckdaten!$A$2-AE25+1) ->  | AF25: =SUM(Tabelle1!$S25,Tabelle1!$P25,Tabelle1!$M25,Tabelle1!$J25,Tabelle1!$G25,Tabelle1!$D25,AA25,AD25,X25) -> 284 | AG25: 10
A26: 22M | B26: Kevin Raab | C26: 24.9 | D26: =IF(Tabelle1!$C26="","",Eckdaten!$A$2-Tabelle1!$E26+1) -> 49 | E26: 2 | F26: 19.47 | G26: =IF(Tabelle1!$F26="","",Eckdaten!$A$2-Tabelle1!$H26+1) -> 43 | H26: 8 | J26: =IF(Tabelle1!$I26="","",Eckdaten!$A$2-K26+1) ->  | L26: 9.7 | M26: =IF(L26="","",Eckdaten!$A$2-N26+1) -> 33 | N26: 18 | O26: 27.91 | P26: =IF(Tabelle1!$O26="","",Eckdaten!$A$2-Q26+1) -> 39 | Q26: 12 | R26: 12.58 | S26: =IF(R26="","",Eckdaten!$A$2-T26+1) -> 43 | T26: 8 | U26: =IF(V26="","",V26+(W26*Eckdaten!$A$9)) -> 57.88 | V26: 57.88 | X26: =IF(V26="","",Eckdaten!$A$2-Y26+1) -> 35 | Y26: 16 | Z26: 29.64 | AA26: =IF(Tabelle1!$Z26="","",Eckdaten!$A$2-Tabelle1!$AB26+1) -> 39 | AB26: 12 | AD26: =IF(Tabelle1!$AC26="","",Eckdaten!$A$2-AE26+1) ->  | AF26: =SUM(Tabelle1!$S26,Tabelle1!$P26,Tabelle1!$M26,Tabelle1!$J26,Tabelle1!$G26,Tabelle1!$D26,AA26,AD26,X26) -> 281 | AG26: 12
A27: 23M | D27: =IF(Tabelle1!$C27="","",Eckdaten!$A$2-Tabelle1!$E27+1) ->  | G27: =IF(Tabelle1!$F27="","",Eckdaten!$A$2-Tabelle1!$H27+1) ->  | J27: =IF(Tabelle1!$I27="","",Eckdaten!$A$2-K27+1) ->  | M27: =IF(L27="","",Eckdaten!$A$2-N27+1) ->  | P27: =IF(Tabelle1!$O27="","",Eckdaten!$A$2-Q27+1) ->  | S27: =IF(R27="","",Eckdaten!$A$2-T27+1) ->  | U27: =IF(V27="","",V27+(W27*Eckdaten!$A$9)) ->  | X27: =IF(V27="","",Eckdaten!$A$2-Y27+1) ->  | AA27: =IF(Tabelle1!$Z27="","",Eckdaten!$A$2-Tabelle1!$AB27+1) ->  | AD27: =IF(Tabelle1!$AC27="","",Eckdaten!$A$2-AE27+1) ->  | AF27: =SUM(Tabelle1!$S27,Tabelle1!$P27,Tabelle1!$M27,Tabelle1!$J27,Tabelle1!$G27,Tabelle1!$D27,AA27,AD27,X27) -> 0
A28: 24M | D28: =IF(Tabelle1!$C28="","",Eckdaten!$A$2-Tabelle1!$E28+1) ->  | G28: =IF(Tabelle1!$F28="","",Eckdaten!$A$2-Tabelle1!$H28+1) ->  | J28: =IF(Tabelle1!$I28="","",Eckdaten!$A$2-K28+1) ->  | M28: =IF(L28="","",Eckdaten!$A$2-N28+1) ->  | P28: =IF(Tabelle1!$O28="","",Eckdaten!$A$2-Q28+1) ->  | S28: =IF(R28="","",Eckdaten!$A$2-T28+1) ->  | U28: =IF(V28="","",V28+(W28*Eckdaten!$A$9)) ->  | X28: =IF(V28="","",Eckdaten!$A$2-Y28+1) ->  | AA28: =IF(Tabelle1!$Z28="","",Eckdaten!$A$2-Tabelle1!$AB28+1) ->  | AD28: =IF(Tabelle1!$AC28="","",Eckdaten!$A$2-AE28+1) ->  | AF28: =SUM(Tabelle1!$S28,Tabelle1!$P28,Tabelle1!$M28,Tabelle1!$J28,Tabelle1!$G28,Tabelle1!$D28,AA28,AD28,X28) -> 0
A29: 25M | D29: =IF(Tabelle1!$C29="","",Eckdaten!$A$2-Tabelle1!$E29+1) ->  | G29: =IF(Tabelle1!$F29="","",Eckdaten!$A$2-Tabelle1!$H29+1) ->  | J29: =IF(Tabelle1!$I29="","",Eckdaten!$A$2-K29+1) ->  | M29: =IF(L29="","",Eckdaten!$A$2-N29+1) ->  | P29: =IF(Tabelle1!$O29="","",Eckdaten!$A$2-Q29+1) ->  | S29: =IF(R29="","",Eckdaten!$A$2-T29+1) ->  | U29: =IF(V29="","",V29+(W29*Eckdaten!$A$9)) ->  | X29: =IF(V29="","",Eckdaten!$A$2-Y29+1) ->  | AA29: =IF(Tabelle1!$Z29="","",Eckdaten!$A$2-Tabelle1!$AB29+1) ->  | AD29: =IF(Tabelle1!$AC29="","",Eckdaten!$A$2-AE29+1) ->  | AF29: =SUM(Tabelle1!$S29,Tabelle1!$P29,Tabelle1!$M29,Tabelle1!$J29,Tabelle1!$G29,Tabelle1!$D29,AA29,AD29,X29) -> 0
A30: 26M | D30: =IF(Tabelle1!$C30="","",Eckdaten!$A$2-Tabelle1!$E30+1) ->  | G30: =IF(Tabelle1!$F30="","",Eckdaten!$A$2-Tabelle1!$H30+1) ->  | J30: =IF(Tabelle1!$I30="","",Eckdaten!$A$2-K30+1) ->  | M30: =IF(L30="","",Eckdaten!$A$2-N30+1) ->  | P30: =IF(Tabelle1!$O30="","",Eckdaten!$A$2-Q30+1) ->  | S30: =IF(R30="","",Eckdaten!$A$2-T30+1) ->  | U30: =IF(V30="","",V30+(W30*Eckdaten!$A$9)) ->  | X30: =IF(V30="","",Eckdaten!$A$2-Y30+1) ->  | AA30: =IF(Tabelle1!$Z30="","",Eckdaten!$A$2-Tabelle1!$AB30+1) ->  | AD30: =IF(Tabelle1!$AC30="","",Eckdaten!$A$2-AE30+1) ->  | AF30: =SUM(Tabelle1!$S30,Tabelle1!$P30,Tabelle1!$M30,Tabelle1!$J30,Tabelle1!$G30,Tabelle1!$D30,AA30,AD30,X30) -> 0
A31: 27M | D31: =IF(Tabelle1!$C31="","",Eckdaten!$A$2-Tabelle1!$E31+1) ->  | G31: =IF(Tabelle1!$F31="","",Eckdaten!$A$2-Tabelle1!$H31+1) ->  | J31: =IF(Tabelle1!$I31="","",Eckdaten!$A$2-K31+1) ->  | M31: =IF(L31="","",Eckdaten!$A$2-N31+1) ->  | P31: =IF(Tabelle1!$O31="","",Eckdaten!$A$2-Q31+1) ->  | S31: =IF(R31="","",Eckdaten!$A$2-T31+1) ->  | U31: =IF(V31="","",V31+(W31*Eckdaten!$A$9)) ->  | X31: =IF(V31="","",Eckdaten!$A$2-Y31+1) ->  | AA31: =IF(Tabelle1!$Z31="","",Eckdaten!$A$2-Tabelle1!$AB31+1) ->  | AD31: =IF(Tabelle1!$AC31="","",Eckdaten!$A$2-AE31+1) ->  | AF31: =SUM(Tabelle1!$S31,Tabelle1!$P31,Tabelle1!$M31,Tabelle1!$J31,Tabelle1!$G31,Tabelle1!$D31,AA31,AD31,X31) -> 0
A32: 28M | D32: =IF(Tabelle1!$C32="","",Eckdaten!$A$2-Tabelle1!$E32+1) ->  | G32: =IF(Tabelle1!$F32="","",Eckdaten!$A$2-Tabelle1!$H32+1) ->  | J32: =IF(Tabelle1!$I32="","",Eckdaten!$A$2-K32+1) ->  | M32: =IF(L32="","",Eckdaten!$A$2-N32+1) ->  | P32: =IF(Tabelle1!$O32="","",Eckdaten!$A$2-Q32+1) ->  | S32: =IF(R32="","",Eckdaten!$A$2-T32+1) ->  | U32: =IF(V32="","",V32+(W32*Eckdaten!$A$9)) ->  | X32: =IF(V32="","",Eckdaten!$A$2-Y32+1) ->  | AA32: =IF(Tabelle1!$Z32="","",Eckdaten!$A$2-Tabelle1!$AB32+1) ->  | AD32: =IF(Tabelle1!$AC32="","",Eckdaten!$A$2-AE32+1) ->  | AF32: =SUM(Tabelle1!$S32,Tabelle1!$P32,Tabelle1!$M32,Tabelle1!$J32,Tabelle1!$G32,Tabelle1!$D32,AA32,AD32,X32) -> 0
A33: 29M | D33: =IF(Tabelle1!$C33="","",Eckdaten!$A$2-Tabelle1!$E33+1) ->  | G33: =IF(Tabelle1!$F33="","",Eckdaten!$A$2-Tabelle1!$H33+1) ->  | J33: =IF(Tabelle1!$I33="","",Eckdaten!$A$2-K33+1) ->  | M33: =IF(L33="","",Eckdaten!$A$2-N33+1) ->  | P33: =IF(Tabelle1!$O33="","",Eckdaten!$A$2-Q33+1) ->  | S33: =IF(R33="","",Eckdaten!$A$2-T33+1) ->  | U33: =IF(V33="","",V33+(W33*Eckdaten!$A$9)) ->  | X33: =IF(V33="","",Eckdaten!$A$2-Y33+1) ->  | AA33: =IF(Tabelle1!$Z33="","",Eckdaten!$A$2-Tabelle1!$AB33+1) ->  | AD33: =IF(Tabelle1!$AC33="","",Eckdaten!$A$2-AE33+1) ->  | AF33: =SUM(Tabelle1!$S33,Tabelle1!$P33,Tabelle1!$M33,Tabelle1!$J33,Tabelle1!$G33,Tabelle1!$D33,AA33,AD33,X33) -> 0
A34: 30M | D34: =IF(Tabelle1!$C34="","",Eckdaten!$A$2-Tabelle1!$E34+1) ->  | G34: =IF(Tabelle1!$F34="","",Eckdaten!$A$2-Tabelle1!$H34+1) ->  | J34: =IF(Tabelle1!$I34="","",Eckdaten!$A$2-K34+1) ->  | M34: =IF(L34="","",Eckdaten!$A$2-N34+1) ->  | P34: =IF(Tabelle1!$O34="","",Eckdaten!$A$2-Q34+1) ->  | S34: =IF(R34="","",Eckdaten!$A$2-T34+1) ->  | U34: =IF(V34="","",V34+(W34*Eckdaten!$A$9)) ->  | X34: =IF(V34="","",Eckdaten!$A$2-Y34+1) ->  | AA34: =IF(Tabelle1!$Z34="","",Eckdaten!$A$2-Tabelle1!$AB34+1) ->  | AD34: =IF(Tabelle1!$AC34="","",Eckdaten!$A$2-AE34+1) ->  | AF34: =SUM(Tabelle1!$S34,Tabelle1!$P34,Tabelle1!$M34,Tabelle1!$J34,Tabelle1!$G34,Tabelle1!$D34,AA34,AD34,X34) -> 0
A35: 31M | D35: =IF(Tabelle1!$C35="","",Eckdaten!$A$2-Tabelle1!$E35+1) ->  | G35: =IF(Tabelle1!$F35="","",Eckdaten!$A$2-Tabelle1!$H35+1) ->  | H35: =IF(F35=0,"",RANK(F35,$F$5:$F$54,1)) ->  | J35: =IF(Tabelle1!$I35="","",Eckdaten!$A$2-K35+1) ->  | M35: =IF(L35="","",Eckdaten!$A$2-N35+1) ->  | P35: =IF(Tabelle1!$O35="","",Eckdaten!$A$2-Q35+1) ->  | S35: =IF(R35="","",Eckdaten!$A$2-T35+1) ->  | U35: =IF(V35="","",V35+(W35*Eckdaten!$A$9)) ->  | X35: =IF(V35="","",Eckdaten!$A$2-Y35+1) ->  | AA35: =IF(Tabelle1!$Z35="","",Eckdaten!$A$2-Tabelle1!$AB35+1) ->  | AD35: =IF(Tabelle1!$AC35="","",Eckdaten!$A$2-AE35+1) ->  | AF35: =SUM(Tabelle1!$S35,Tabelle1!$P35,Tabelle1!$M35,Tabelle1!$J35,Tabelle1!$G35,Tabelle1!$D35,AA35,AD35,X35) -> 0 | AG35: =IF(AF35=0,"",RANK(AF35,$AF$5:$AF$54)) -> 
A36: 32M | D36: =IF(Tabelle1!$C36="","",Eckdaten!$A$2-Tabelle1!$E36+1) ->  | G36: =IF(Tabelle1!$F36="","",Eckdaten!$A$2-Tabelle1!$H36+1) ->  | J36: =IF(Tabelle1!$I36="","",Eckdaten!$A$2-K36+1) ->  | M36: =IF(L36="","",Eckdaten!$A$2-N36+1) ->  | P36: =IF(Tabelle1!$O36="","",Eckdaten!$A$2-Q36+1) ->  | S36: =IF(R36="","",Eckdaten!$A$2-T36+1) ->  | U36: =IF(V36="","",V36+(W36*Eckdaten!$A$9)) ->  | X36: =IF(V36="","",Eckdaten!$A$2-Y36+1) ->  | AA36: =IF(Tabelle1!$Z36="","",Eckdaten!$A$2-Tabelle1!$AB36+1) ->  | AD36: =IF(Tabelle1!$AC36="","",Eckdaten!$A$2-AE36+1) ->  | AF36: =SUM(Tabelle1!$S36,Tabelle1!$P36,Tabelle1!$M36,Tabelle1!$J36,Tabelle1!$G36,Tabelle1!$D36,AA36,AD36,X36) -> 0
A37: 33M | D37: =IF(Tabelle1!$C37="","",Eckdaten!$A$2-Tabelle1!$E37+1) ->  | G37: =IF(Tabelle1!$F37="","",Eckdaten!$A$2-Tabelle1!$H37+1) ->  | J37: =IF(Tabelle1!$I37="","",Eckdaten!$A$2-K37+1) ->  | M37: =IF(L37="","",Eckdaten!$A$2-N37+1) ->  | P37: =IF(Tabelle1!$O37="","",Eckdaten!$A$2-Q37+1) ->  | S37: =IF(R37="","",Eckdaten!$A$2-T37+1) ->  | U37: =IF(V37="","",V37+(W37*Eckdaten!$A$9)) ->  | X37: =IF(V37="","",Eckdaten!$A$2-Y37+1) ->  | Y37: =IF(ISERROR(IF(U37=0,"",RANK(U37,$U$5:$U$54,1))),"",IF(U37=0,"",RANK(U37,$U$5:$U$54,1))) ->  | AA37: =IF(Tabelle1!$Z37="","",Eckdaten!$A$2-Tabelle1!$AB37+1) ->  | AD37: =IF(Tabelle1!$AC37="","",Eckdaten!$A$2-AE37+1) ->  | AF37: =SUM(Tabelle1!$S37,Tabelle1!$P37,Tabelle1!$M37,Tabelle1!$J37,Tabelle1!$G37,Tabelle1!$D37,AA37,AD37,X37) -> 0
A38: 34M | D38: =IF(Tabelle1!$C38="","",Eckdaten!$A$2-Tabelle1!$E38+1) ->  | G38: =IF(Tabelle1!$F38="","",Eckdaten!$A$2-Tabelle1!$H38+1) ->  | J38: =IF(Tabelle1!$I38="","",Eckdaten!$A$2-K38+1) ->  | M38: =IF(L38="","",Eckdaten!$A$2-N38+1) ->  | P38: =IF(Tabelle1!$O38="","",Eckdaten!$A$2-Q38+1) ->  | S38: =IF(R38="","",Eckdaten!$A$2-T38+1) ->  | U38: =IF(V38="","",V38+(W38*Eckdaten!$A$9)) ->  | X38: =IF(V38="","",Eckdaten!$A$2-Y38+1) ->  | AA38: =IF(Tabelle1!$Z38="","",Eckdaten!$A$2-Tabelle1!$AB38+1) ->  | AD38: =IF(Tabelle1!$AC38="","",Eckdaten!$A$2-AE38+1) ->  | AF38: =SUM(Tabelle1!$S38,Tabelle1!$P38,Tabelle1!$M38,Tabelle1!$J38,Tabelle1!$G38,Tabelle1!$D38,AA38,AD38,X38) -> 0
A39: 35M | D39: =IF(Tabelle1!$C39="","",Eckdaten!$A$2-Tabelle1!$E39+1) ->  | G39: =IF(Tabelle1!$F39="","",Eckdaten!$A$2-Tabelle1!$H39+1) ->  | J39: =IF(Tabelle1!$I39="","",Eckdaten!$A$2-K39+1) ->  | M39: =IF(L39="","",Eckdaten!$A$2-N39+1) ->  | P39: =IF(Tabelle1!$O39="","",Eckdaten!$A$2-Q39+1) ->  | S39: =IF(R39="","",Eckdaten!$A$2-T39+1) ->  | U39: =IF(V39="","",V39+(W39*Eckdaten!$A$9)) ->  | X39: =IF(V39="","",Eckdaten!$A$2-Y39+1) ->  | AA39: =IF(Tabelle1!$Z39="","",Eckdaten!$A$2-Tabelle1!$AB39+1) ->  | AD39: =IF(Tabelle1!$AC39="","",Eckdaten!$A$2-AE39+1) ->  | AF39: =SUM(Tabelle1!$S39,Tabelle1!$P39,Tabelle1!$M39,Tabelle1!$J39,Tabelle1!$G39,Tabelle1!$D39,AA39,AD39,X39) -> 0
A40: 36M | D40: =IF(Tabelle1!$C40="","",Eckdaten!$A$2-Tabelle1!$E40+1) ->  | G40: =IF(Tabelle1!$F40="","",Eckdaten!$A$2-Tabelle1!$H40+1) ->  | J40: =IF(Tabelle1!$I40="","",Eckdaten!$A$2-K40+1) ->  | M40: =IF(L40="","",Eckdaten!$A$2-N40+1) ->  | P40: =IF(Tabelle1!$O40="","",Eckdaten!$A$2-Q40+1) ->  | S40: =IF(R40="","",Eckdaten!$A$2-T40+1) ->  | U40: =IF(V40="","",V40+(W40*Eckdaten!$A$9)) ->  | X40: =IF(V40="","",Eckdaten!$A$2-Y40+1) ->  | AA40: =IF(Tabelle1!$Z40="","",Eckdaten!$A$2-Tabelle1!$AB40+1) ->  | AD40: =IF(Tabelle1!$AC40="","",Eckdaten!$A$2-AE40+1) ->  | AF40: =SUM(Tabelle1!$S40,Tabelle1!$P40,Tabelle1!$M40,Tabelle1!$J40,Tabelle1!$G40,Tabelle1!$D40,AA40,AD40,X40) -> 0
A41: 37M | D41: =IF(Tabelle1!$C41="","",Eckdaten!$A$2-Tabelle1!$E41+1) ->  | G41: =IF(Tabelle1!$F41="","",Eckdaten!$A$2-Tabelle1!$H41+1) ->  | J41: =IF(Tabelle1!$I41="","",Eckdaten!$A$2-K41+1) ->  | M41: =IF(L41="","",Eckdaten!$A$2-N41+1) ->  | P41: =IF(Tabelle1!$O41="","",Eckdaten!$A$2-Q41+1) ->  | S41: =IF(R41="","",Eckdaten!$A$2-T41+1) ->  | U41: =IF(V41="","",V41+(W41*Eckdaten!$A$9)) ->  | X41: =IF(V41="","",Eckdaten!$A$2-Y41+1) ->  | AA41: =IF(Tabelle1!$Z41="","",Eckdaten!$A$2-Tabelle1!$AB41+1) ->  | AD41: =IF(Tabelle1!$AC41="","",Eckdaten!$A$2-AE41+1) ->  | AF41: =SUM(Tabelle1!$S41,Tabelle1!$P41,Tabelle1!$M41,Tabelle1!$J41,Tabelle1!$G41,Tabelle1!$D41,AA41,AD41,X41) -> 0
A42: 38M | D42: =IF(Tabelle1!$C42="","",Eckdaten!$A$2-Tabelle1!$E42+1) ->  | G42: =IF(Tabelle1!$F42="","",Eckdaten!$A$2-Tabelle1!$H42+1) ->  | J42: =IF(Tabelle1!$I42="","",Eckdaten!$A$2-K42+1) ->  | M42: =IF(L42="","",Eckdaten!$A$2-N42+1) ->  | P42: =IF(Tabelle1!$O42="","",Eckdaten!$A$2-Q42+1) ->  | S42: =IF(R42="","",Eckdaten!$A$2-T42+1) ->  | U42: =IF(V42="","",V42+(W42*Eckdaten!$A$9)) ->  | X42: =IF(V42="","",Eckdaten!$A$2-Y42+1) ->  | AA42: =IF(Tabelle1!$Z42="","",Eckdaten!$A$2-Tabelle1!$AB42+1) ->  | AD42: =IF(Tabelle1!$AC42="","",Eckdaten!$A$2-AE42+1) ->  | AF42: =SUM(Tabelle1!$S42,Tabelle1!$P42,Tabelle1!$M42,Tabelle1!$J42,Tabelle1!$G42,Tabelle1!$D42,AA42,AD42,X42) -> 0
A43: 39M | D43: =IF(Tabelle1!$C43="","",Eckdaten!$A$2-Tabelle1!$E43+1) ->  | G43: =IF(Tabelle1!$F43="","",Eckdaten!$A$2-Tabelle1!$H43+1) ->  | J43: =IF(Tabelle1!$I43="","",Eckdaten!$A$2-K43+1) ->  | M43: =IF(L43="","",Eckdaten!$A$2-N43+1) ->  | P43: =IF(Tabelle1!$O43="","",Eckdaten!$A$2-Q43+1) ->  | S43: =IF(R43="","",Eckdaten!$A$2-T43+1) ->  | U43: =IF(V43="","",V43+(W43*Eckdaten!$A$9)) ->  | X43: =IF(V43="","",Eckdaten!$A$2-Y43+1) ->  | AA43: =IF(Tabelle1!$Z43="","",Eckdaten!$A$2-Tabelle1!$AB43+1) ->  | AD43: =IF(Tabelle1!$AC43="","",Eckdaten!$A$2-AE43+1) ->  | AF43: =SUM(Tabelle1!$S43,Tabelle1!$P43,Tabelle1!$M43,Tabelle1!$J43,Tabelle1!$G43,Tabelle1!$D43,AA43,AD43,X43) -> 0
A44: 40M | D44: =IF(Tabelle1!$C44="","",Eckdaten!$A$2-Tabelle1!$E44+1) ->  | G44: =IF(Tabelle1!$F44="","",Eckdaten!$A$2-Tabelle1!$H44+1) ->  | J44: =IF(Tabelle1!$I44="","",Eckdaten!$A$2-K44+1) ->  | M44: =IF(L44="","",Eckdaten!$A$2-N44+1) ->  | P44: =IF(Tabelle1!$O44="","",Eckdaten!$A$2-Q44+1) ->  | S44: =IF(R44="","",Eckdaten!$A$2-T44+1) ->  | U44: =IF(V44="","",V44+(W44*Eckdaten!$A$9)) ->  | X44: =IF(V44="","",Eckdaten!$A$2-Y44+1) ->  | AA44: =IF(Tabelle1!$Z44="","",Eckdaten!$A$2-Tabelle1!$AB44+1) ->  | AD44: =IF(Tabelle1!$AC44="","",Eckdaten!$A$2-AE44+1) ->  | AF44: =SUM(Tabelle1!$S44,Tabelle1!$P44,Tabelle1!$M44,Tabelle1!$J44,Tabelle1!$G44,Tabelle1!$D44,AA44,AD44,X44) -> 0
A45: 41M | D45: =IF(Tabelle1!$C45="","",Eckdaten!$A$2-Tabelle1!$E45+1) ->  | G45: =IF(Tabelle1!$F45="","",Eckdaten!$A$2-Tabelle1!$H45+1) ->  | J45: =IF(Tabelle1!$I45="","",Eckdaten!$A$2-K45+1) ->  | M45: =IF(L45="","",Eckdaten!$A$2-N45+1) ->  | P45: =IF(Tabelle1!$O45="","",Eckdaten!$A$2-Q45+1) ->  | S45: =IF(R45="","",Eckdaten!$A$2-T45+1) ->  | U45: =IF(V45="","",V45+(W45*Eckdaten!$A$9)) ->  | X45: =IF(V45="","",Eckdaten!$A$2-Y45+1) ->  | AA45: =IF(Tabelle1!$Z45="","",Eckdaten!$A$2-Tabelle1!$AB45+1) ->  | AD45: =IF(Tabelle1!$AC45="","",Eckdaten!$A$2-AE45+1) ->  | AF45: =SUM(Tabelle1!$S45,Tabelle1!$P45,Tabelle1!$M45,Tabelle1!$J45,Tabelle1!$G45,Tabelle1!$D45,AA45,AD45,X45) -> 0
A46: 42M | D46: =IF(Tabelle1!$C46="","",Eckdaten!$A$2-Tabelle1!$E46+1) ->  | G46: =IF(Tabelle1!$F46="","",Eckdaten!$A$2-Tabelle1!$H46+1) ->  | J46: =IF(Tabelle1!$I46="","",Eckdaten!$A$2-K46+1) ->  | M46: =IF(L46="","",Eckdaten!$A$2-N46+1) ->  | P46: =IF(Tabelle1!$O46="","",Eckdaten!$A$2-Q46+1) ->  | S46: =IF(R46="","",Eckdaten!$A$2-T46+1) ->  | U46: =IF(V46="","",V46+(W46*Eckdaten!$A$9)) ->  | X46: =IF(V46="","",Eckdaten!$A$2-Y46+1) ->  | AA46: =IF(Tabelle1!$Z46="","",Eckdaten!$A$2-Tabelle1!$AB46+1) ->  | AD46: =IF(Tabelle1!$AC46="","",Eckdaten!$A$2-AE46+1) ->  | AF46: =SUM(Tabelle1!$S46,Tabelle1!$P46,Tabelle1!$M46,Tabelle1!$J46,Tabelle1!$G46,Tabelle1!$D46,AA46,AD46,X46) -> 0
A47: 43M | D47: =IF(Tabelle1!$C47="","",Eckdaten!$A$2-Tabelle1!$E47+1) ->  | G47: =IF(Tabelle1!$F47="","",Eckdaten!$A$2-Tabelle1!$H47+1) ->  | J47: =IF(Tabelle1!$I47="","",Eckdaten!$A$2-K47+1) ->  | M47: =IF(L47="","",Eckdaten!$A$2-N47+1) ->  | P47: =IF(Tabelle1!$O47="","",Eckdaten!$A$2-Q47+1) ->  | S47: =IF(R47="","",Eckdaten!$A$2-T47+1) ->  | U47: =IF(V47="","",V47+(W47*Eckdaten!$A$9)) ->  | X47: =IF(V47="","",Eckdaten!$A$2-Y47+1) ->  | AA47: =IF(Tabelle1!$Z47="","",Eckdaten!$A$2-Tabelle1!$AB47+1) ->  | AD47: =IF(Tabelle1!$AC47="","",Eckdaten!$A$2-AE47+1) ->  | AF47: =SUM(Tabelle1!$S47,Tabelle1!$P47,Tabelle1!$M47,Tabelle1!$J47,Tabelle1!$G47,Tabelle1!$D47,AA47,AD47,X47) -> 0
A48: 44M | D48: =IF(Tabelle1!$C48="","",Eckdaten!$A$2-Tabelle1!$E48+1) ->  | G48: =IF(Tabelle1!$F48="","",Eckdaten!$A$2-Tabelle1!$H48+1) ->  | J48: =IF(Tabelle1!$I48="","",Eckdaten!$A$2-K48+1) ->  | M48: =IF(L48="","",Eckdaten!$A$2-N48+1) ->  | P48: =IF(Tabelle1!$O48="","",Eckdaten!$A$2-Q48+1) ->  | S48: =IF(R48="","",Eckdaten!$A$2-T48+1) ->  | U48: =IF(V48="","",V48+(W48*Eckdaten!$A$9)) ->  | X48: =IF(V48="","",Eckdaten!$A$2-Y48+1) ->  | AA48: =IF(Tabelle1!$Z48="","",Eckdaten!$A$2-Tabelle1!$AB48+1) ->  | AD48: =IF(Tabelle1!$AC48="","",Eckdaten!$A$2-AE48+1) ->  | AF48: =SUM(Tabelle1!$S48,Tabelle1!$P48,Tabelle1!$M48,Tabelle1!$J48,Tabelle1!$G48,Tabelle1!$D48,AA48,AD48,X48) -> 0
A49: 45M | D49: =IF(Tabelle1!$C49="","",Eckdaten!$A$2-Tabelle1!$E49+1) ->  | G49: =IF(Tabelle1!$F49="","",Eckdaten!$A$2-Tabelle1!$H49+1) ->  | J49: =IF(Tabelle1!$I49="","",Eckdaten!$A$2-K49+1) ->  | M49: =IF(L49="","",Eckdaten!$A$2-N49+1) ->  | P49: =IF(Tabelle1!$O49="","",Eckdaten!$A$2-Q49+1) ->  | S49: =IF(R49="","",Eckdaten!$A$2-T49+1) ->  | U49: =IF(V49="","",V49+(W49*Eckdaten!$A$9)) ->  | X49: =IF(V49="","",Eckdaten!$A$2-Y49+1) ->  | AA49: =IF(Tabelle1!$Z49="","",Eckdaten!$A$2-Tabelle1!$AB49+1) ->  | AD49: =IF(Tabelle1!$AC49="","",Eckdaten!$A$2-AE49+1) ->  | AF49: =SUM(Tabelle1!$S49,Tabelle1!$P49,Tabelle1!$M49,Tabelle1!$J49,Tabelle1!$G49,Tabelle1!$D49,AA49,AD49,X49) -> 0
A50: 46M | D50: =IF(Tabelle1!$C50="","",Eckdaten!$A$2-Tabelle1!$E50+1) ->  | G50: =IF(Tabelle1!$F50="","",Eckdaten!$A$2-Tabelle1!$H50+1) ->  | J50: =IF(Tabelle1!$I50="","",Eckdaten!$A$2-K50+1) ->  | M50: =IF(L50="","",Eckdaten!$A$2-N50+1) ->  | P50: =IF(Tabelle1!$O50="","",Eckdaten!$A$2-Q50+1) ->  | S50: =IF(R50="","",Eckdaten!$A$2-T50+1) ->  | U50: =IF(V50="","",V50+(W50*Eckdaten!$A$9)) ->  | X50: =IF(V50="","",Eckdaten!$A$2-Y50+1) ->  | AA50: =IF(Tabelle1!$Z50="","",Eckdaten!$A$2-Tabelle1!$AB50+1) ->  | AD50: =IF(Tabelle1!$AC50="","",Eckdaten!$A$2-AE50+1) ->  | AF50: =SUM(Tabelle1!$S50,Tabelle1!$P50,Tabelle1!$M50,Tabelle1!$J50,Tabelle1!$G50,Tabelle1!$D50,AA50,AD50,X50) -> 0
A51: 47M | D51: =IF(Tabelle1!$C51="","",Eckdaten!$A$2-Tabelle1!$E51+1) ->  | G51: =IF(Tabelle1!$F51="","",Eckdaten!$A$2-Tabelle1!$H51+1) ->  | J51: =IF(Tabelle1!$I51="","",Eckdaten!$A$2-K51+1) ->  | M51: =IF(L51="","",Eckdaten!$A$2-N51+1) ->  | P51: =IF(Tabelle1!$O51="","",Eckdaten!$A$2-Q51+1) ->  | S51: =IF(R51="","",Eckdaten!$A$2-T51+1) ->  | U51: =IF(V51="","",V51+(W51*Eckdaten!$A$9)) ->  | X51: =IF(V51="","",Eckdaten!$A$2-Y51+1) ->  | AA51: =IF(Tabelle1!$Z51="","",Eckdaten!$A$2-Tabelle1!$AB51+1) ->  | AD51: =IF(Tabelle1!$AC51="","",Eckdaten!$A$2-AE51+1) ->  | AF51: =SUM(Tabelle1!$S51,Tabelle1!$P51,Tabelle1!$M51,Tabelle1!$J51,Tabelle1!$G51,Tabelle1!$D51,AA51,AD51,X51) -> 0
A52: 48M | D52: =IF(Tabelle1!$C52="","",Eckdaten!$A$2-Tabelle1!$E52+1) ->  | G52: =IF(Tabelle1!$F52="","",Eckdaten!$A$2-Tabelle1!$H52+1) ->  | J52: =IF(Tabelle1!$I52="","",Eckdaten!$A$2-K52+1) ->  | M52: =IF(L52="","",Eckdaten!$A$2-N52+1) ->  | P52: =IF(Tabelle1!$O52="","",Eckdaten!$A$2-Q52+1) ->  | S52: =IF(R52="","",Eckdaten!$A$2-T52+1) ->  | U52: =IF(V52="","",V52+(W52*Eckdaten!$A$9)) ->  | X52: =IF(V52="","",Eckdaten!$A$2-Y52+1) ->  | AA52: =IF(Tabelle1!$Z52="","",Eckdaten!$A$2-Tabelle1!$AB52+1) ->  | AD52: =IF(Tabelle1!$AC52="","",Eckdaten!$A$2-AE52+1) ->  | AF52: =SUM(Tabelle1!$S52,Tabelle1!$P52,Tabelle1!$M52,Tabelle1!$J52,Tabelle1!$G52,Tabelle1!$D52,AA52,AD52,X52) -> 0
A53: 49M | D53: =IF(Tabelle1!$C53="","",Eckdaten!$A$2-Tabelle1!$E53+1) ->  | G53: =IF(Tabelle1!$F53="","",Eckdaten!$A$2-Tabelle1!$H53+1) ->  | J53: =IF(Tabelle1!$I53="","",Eckdaten!$A$2-K53+1) ->  | M53: =IF(L53="","",Eckdaten!$A$2-N53+1) ->  | P53: =IF(Tabelle1!$O53="","",Eckdaten!$A$2-Q53+1) ->  | S53: =IF(R53="","",Eckdaten!$A$2-T53+1) ->  | U53: =IF(V53="","",V53+(W53*Eckdaten!$A$9)) ->  | X53: =IF(V53="","",Eckdaten!$A$2-Y53+1) ->  | AA53: =IF(Tabelle1!$Z53="","",Eckdaten!$A$2-Tabelle1!$AB53+1) ->  | AD53: =IF(Tabelle1!$AC53="","",Eckdaten!$A$2-AE53+1) ->  | AF53: =SUM(Tabelle1!$S53,Tabelle1!$P53,Tabelle1!$M53,Tabelle1!$J53,Tabelle1!$G53,Tabelle1!$D53,AA53,AD53,X53) -> 0
A54: 50M | D54: =IF(Tabelle1!$C54="","",Eckdaten!$A$2-Tabelle1!$E54+1) ->  | G54: =IF(Tabelle1!$F54="","",Eckdaten!$A$2-Tabelle1!$H54+1) ->  | J54: =IF(Tabelle1!$I54="","",Eckdaten!$A$2-K54+1) ->  | M54: =IF(L54="","",Eckdaten!$A$2-N54+1) ->  | P54: =IF(Tabelle1!$O54="","",Eckdaten!$A$2-Q54+1) ->  | S54: =IF(R54="","",Eckdaten!$A$2-T54+1) ->  | U54: =IF(V54="","",V54+(W54*Eckdaten!$A$9)) ->  | X54: =IF(V54="","",Eckdaten!$A$2-Y54+1) ->  | AA54: =IF(Tabelle1!$Z54="","",Eckdaten!$A$2-Tabelle1!$AB54+1) ->  | AD54: =IF(Tabelle1!$AC54="","",Eckdaten!$A$2-AE54+1) ->  | AF54: =SUM(Tabelle1!$S54,Tabelle1!$P54,Tabelle1!$M54,Tabelle1!$J54,Tabelle1!$G54,Tabelle1!$D54,AA54,AD54,X54) -> 0
A56: Frauen
A57: Startnummer | B57: Name | C57: Hindernisslauf Zeit | D57: Punkte HNL | E57: Rang HNL | F57: Farmerwalk | G57: Punke FW | H57: Rang FW | I57: Reifenweitwurf | J57: Punkte RW | K57: Rang RW | L57: Gummisiefelweitwurf | M57: Punkte GW | N57: Rang GW | O57: Palette | P57: Punkte PH | Q57: Rang PH | R57: Reifenrollen | S57: Punkte RR | T57: Rang RR | U57: Rechnungssummer | V57: heißer Draht | W57: Zeitstrafe | X57: Punkte hD | Y57: Rang hD | Z57: Zusatz 1 | AA57: Punke Z1 | AB57: Rang Z1 | AC57: Zusatz 2 | AD57: Punkte Z2 | AE57: Rang Z2 | AF57: Gesamtpunkte | AG57: Rang
C58: Zeit in sec. | F58: Zeit in sec | H58: =H56 -> 0 | I58: in m | K58: =K56 -> 0 | L58: in m | N58: =N56 -> 0 | O58: Zeit in sec | Q58: =Q56 -> 0 | R58: Zeit in sec | T58: =T56 -> 0 | U58: gesamt | V58: Zeit in sec. | W58: in berührungen | Z58: positiv | AB58: =AB56 -> 0 | AC58: negativ | AE58: =AE56 -> 0
A59: 1F | B59: Katharina Strasser | C59: 33.12 | D59: =IF(Tabelle1!$C59="","",Eckdaten!$A$2-Tabelle1!$E59+1) -> 48 | E59: =IF(C59=0,"",RANK(C59,$C$59:$C$108,1)) -> 3 | F59: 19.74 | G59: =IF(Tabelle1!$F59="","",Eckdaten!$A$2-Tabelle1!$H59+1) -> 48 | H59: =IF(F59=0,"",RANK(F59,$F$59:$F$108,1)) -> 3 | J59: =IF(Tabelle1!$I59="","",Eckdaten!$A$2-K59+1) ->  | K59: =IF(I59=0,"",RANK(I59,$I$6:$I$153,)) ->  | L59: 16.9 | M59: =IF(L59="","",Eckdaten!$A$2-N59+1) -> 49 | N59: =IF(L59=0,"",RANK(L59,$L$59:$L$153)) -> 2 | O59: 40.55 | P59: =IF(Tabelle1!$O59="","",Eckdaten!$A$2-Q59+1) -> 48 | Q59: =IF(O59=0,"",RANK(O59,$O$59:$O$153)) -> 3 | R59: 9.94 | S59: =IF(R59="","",Eckdaten!$A$2-T59+1) -> 49 | T59: =IF(R59=0,"",RANK(R59,$R$59:$R$153,1)) -> 2 | U59: =IF(V59="","",V59+(W59*Eckdaten!$A$9)) -> 117.33 | V59: 117.33 | X59: =IF(V59="","",Eckdaten!$A$2-Y59+1) -> 48 | Y59: =IF(ISERROR(IF(U59=0,"",RANK(U59,$U$59:$U$153,1))),"",IF(U59=0,"",RANK(U59,$U$59:$U$153,1))) -> 3 | Z59: 22.24 | AA59: =IF(Tabelle1!$Z59="","",Eckdaten!$A$2-Tabelle1!$AB59+1) -> 49 | AB59: =IF(Z59=0,"",RANK(Z59,$Z$59:$Z$153,1)) -> 2 | AD59: =IF(Tabelle1!$AC59="","",Eckdaten!$A$2-AE59+1) ->  | AE59: =IF(AC59=0,"",RANK(AC59,$AC$59:$AC$153)) ->  | AF59: =SUM(Tabelle1!$S59,Tabelle1!$P59,Tabelle1!$M59,Tabelle1!$J59,Tabelle1!$G59,Tabelle1!$D59,AA59,AD59,X59) -> 339 | AG59: =IF(AF59=0,"",RANK(AF59,$AF$59:$AF$153)) -> 3
A60: 2F | B60: Magdalena Schürz | C60: 30.5 | D60: =IF(Tabelle1!$C60="","",Eckdaten!$A$2-Tabelle1!$E60+1) -> 49 | E60: =IF(C60=0,"",RANK(C60,$C$59:$C$108,1)) -> 2 | F60: 18.38 | G60: =IF(Tabelle1!$F60="","",Eckdaten!$A$2-Tabelle1!$H60+1) -> 50 | H60: =IF(F60=0,"",RANK(F60,$F$59:$F$108,1)) -> 1 | J60: =IF(Tabelle1!$I60="","",Eckdaten!$A$2-K60+1) ->  | L60: 15.5 | M60: =IF(L60="","",Eckdaten!$A$2-N60+1) -> 48 | N60: =IF(L60=0,"",RANK(L60,$L$59:$L$153)) -> 3 | O60: 51.87 | P60: =IF(Tabelle1!$O60="","",Eckdaten!$A$2-Q60+1) -> 49 | Q60: =IF(O60=0,"",RANK(O60,$O$59:$O$153)) -> 2 | R60: 10.19 | S60: =IF(R60="","",Eckdaten!$A$2-T60+1) -> 48 | T60: =IF(R60=0,"",RANK(R60,$R$59:$R$153,1)) -> 3 | U60: =IF(V60="","",V60+(W60*Eckdaten!$A$9)) -> 66.57 | V60: 66.57 | X60: =IF(V60="","",Eckdaten!$A$2-Y60+1) -> 49 | Y60: =IF(ISERROR(IF(U60=0,"",RANK(U60,$U$59:$U$153,1))),"",IF(U60=0,"",RANK(U60,$U$59:$U$153,1))) -> 2 | Z60: 18.78 | AA60: =IF(Tabelle1!$Z60="","",Eckdaten!$A$2-Tabelle1!$AB60+1) -> 50 | AB60: =IF(Z60=0,"",RANK(Z60,$Z$59:$Z$153,1)) -> 1 | AD60: =IF(Tabelle1!$AC60="","",Eckdaten!$A$2-AE60+1) ->  | AE60: =IF(AC60=0,"",RANK(AC60,$AC$59:$AC$153)) ->  | AF60: =SUM(Tabelle1!$S60,Tabelle1!$P60,Tabelle1!$M60,Tabelle1!$J60,Tabelle1!$G60,Tabelle1!$D60,AA60,AD60,X60) -> 343 | AG60: =IF(AF60=0,"",RANK(AF60,$AF$59:$AF$153)) -> 2
A61: 3F | B61: Marina Stöttner | C61: 30.37 | D61: =IF(Tabelle1!$C61="","",Eckdaten!$A$2-Tabelle1!$E61+1) -> 50 | E61: =IF(C61=0,"",RANK(C61,$C$59:$C$108,1)) -> 1 | F61: 18.84 | G61: =IF(Tabelle1!$F61="","",Eckdaten!$A$2-Tabelle1!$H61+1) -> 49 | H61: 2 | J61: =IF(Tabelle1!$I61="","",Eckdaten!$A$2-K61+1) ->  | L61: 19.1 | M61: =IF(L61="","",Eckdaten!$A$2-N61+1) -> 50 | N61: 1 | O61: 66.72 | P61: =IF(Tabelle1!$O61="","",Eckdaten!$A$2-Q61+1) -> 50 | Q61: 1 | R61: 9.12 | S61: =IF(R61="","",Eckdaten!$A$2-T61+1) -> 50 | T61: 1 | U61: =IF(V61="","",V61+(W61*Eckdaten!$A$9)) -> 61.53 | V61: 61.53 | X61: =IF(V61="","",Eckdaten!$A$2-Y61+1) -> 50 | Y61: 1 | Z61: 30.16 | AA61: =IF(Tabelle1!$Z61="","",Eckdaten!$A$2-Tabelle1!$AB61+1) -> 48 | AB61: 3 | AD61: =IF(Tabelle1!$AC61="","",Eckdaten!$A$2-AE61+1) ->  | AF61: =SUM(Tabelle1!$S61,Tabelle1!$P61,Tabelle1!$M61,Tabelle1!$J61,Tabelle1!$G61,Tabelle1!$D61,AA61,AD61,X61) -> 347 | AG61: 1
A62: 4F | D62: =IF(Tabelle1!$C62="","",Eckdaten!$A$2-Tabelle1!$E62+1) ->  | G62: =IF(Tabelle1!$F62="","",Eckdaten!$A$2-Tabelle1!$H62+1) ->  | J62: =IF(Tabelle1!$I62="","",Eckdaten!$A$2-K62+1) ->  | M62: =IF(L62="","",Eckdaten!$A$2-N62+1) ->  | P62: =IF(Tabelle1!$O62="","",Eckdaten!$A$2-Q62+1) ->  | S62: =IF(R62="","",Eckdaten!$A$2-T62+1) ->  | U62: =IF(V62="","",V62+(W62*Eckdaten!$A$9)) ->  | X62: =IF(V62="","",Eckdaten!$A$2-Y62+1) ->  | AA62: =IF(Tabelle1!$Z62="","",Eckdaten!$A$2-Tabelle1!$AB62+1) ->  | AD62: =IF(Tabelle1!$AC62="","",Eckdaten!$A$2-AE62+1) ->  | AF62: =SUM(Tabelle1!$S62,Tabelle1!$P62,Tabelle1!$M62,Tabelle1!$J62,Tabelle1!$G62,Tabelle1!$D62,AA62,AD62,X62) -> 0
A63: 5F | D63: =IF(Tabelle1!$C63="","",Eckdaten!$A$2-Tabelle1!$E63+1) ->  | G63: =IF(Tabelle1!$F63="","",Eckdaten!$A$2-Tabelle1!$H63+1) ->  | J63: =IF(Tabelle1!$I63="","",Eckdaten!$A$2-K63+1) ->  | M63: =IF(L63="","",Eckdaten!$A$2-N63+1) ->  | P63: =IF(Tabelle1!$O63="","",Eckdaten!$A$2-Q63+1) ->  | S63: =IF(R63="","",Eckdaten!$A$2-T63+1) ->  | U63: =IF(V63="","",V63+(W63*Eckdaten!$A$9)) ->  | X63: =IF(V63="","",Eckdaten!$A$2-Y63+1) ->  | AA63: =IF(Tabelle1!$Z63="","",Eckdaten!$A$2-Tabelle1!$AB63+1) ->  | AD63: =IF(Tabelle1!$AC63="","",Eckdaten!$A$2-AE63+1) ->  | AF63: =SUM(Tabelle1!$S63,Tabelle1!$P63,Tabelle1!$M63,Tabelle1!$J63,Tabelle1!$G63,Tabelle1!$D63,AA63,AD63,X63) -> 0
A64: 6F | D64: =IF(Tabelle1!$C64="","",Eckdaten!$A$2-Tabelle1!$E64+1) ->  | G64: =IF(Tabelle1!$F64="","",Eckdaten!$A$2-Tabelle1!$H64+1) ->  | J64: =IF(Tabelle1!$I64="","",Eckdaten!$A$2-K64+1) ->  | M64: =IF(L64="","",Eckdaten!$A$2-N64+1) ->  | P64: =IF(Tabelle1!$O64="","",Eckdaten!$A$2-Q64+1) ->  | S64: =IF(R64="","",Eckdaten!$A$2-T64+1) ->  | U64: =IF(V64="","",V64+(W64*Eckdaten!$A$9)) ->  | X64: =IF(V64="","",Eckdaten!$A$2-Y64+1) ->  | AA64: =IF(Tabelle1!$Z64="","",Eckdaten!$A$2-Tabelle1!$AB64+1) ->  | AD64: =IF(Tabelle1!$AC64="","",Eckdaten!$A$2-AE64+1) ->  | AF64: =SUM(Tabelle1!$S64,Tabelle1!$P64,Tabelle1!$M64,Tabelle1!$J64,Tabelle1!$G64,Tabelle1!$D64,AA64,AD64,X64) -> 0
A65: 7F | D65: =IF(Tabelle1!$C65="","",Eckdaten!$A$2-Tabelle1!$E65+1) ->  | G65: =IF(Tabelle1!$F65="","",Eckdaten!$A$2-Tabelle1!$H65+1) ->  | J65: =IF(Tabelle1!$I65="","",Eckdaten!$A$2-K65+1) ->  | M65: =IF(L65="","",Eckdaten!$A$2-N65+1) ->  | P65: =IF(Tabelle1!$O65="","",Eckdaten!$A$2-Q65+1) ->  | S65: =IF(R65="","",Eckdaten!$A$2-T65+1) ->  | U65: =IF(V65="","",V65+(W65*Eckdaten!$A$9)) ->  | X65: =IF(V65="","",Eckdaten!$A$2-Y65+1) ->  | AA65: =IF(Tabelle1!$Z65="","",Eckdaten!$A$2-Tabelle1!$AB65+1) ->  | AD65: =IF(Tabelle1!$AC65="","",Eckdaten!$A$2-AE65+1) ->  | AF65: =SUM(Tabelle1!$S65,Tabelle1!$P65,Tabelle1!$M65,Tabelle1!$J65,Tabelle1!$G65,Tabelle1!$D65,AA65,AD65,X65) -> 0
A66: 8F | D66: =IF(Tabelle1!$C66="","",Eckdaten!$A$2-Tabelle1!$E66+1) ->  | G66: =IF(Tabelle1!$F66="","",Eckdaten!$A$2-Tabelle1!$H66+1) ->  | J66: =IF(Tabelle1!$I66="","",Eckdaten!$A$2-K66+1) ->  | M66: =IF(L66="","",Eckdaten!$A$2-N66+1) ->  | P66: =IF(Tabelle1!$O66="","",Eckdaten!$A$2-Q66+1) ->  | S66: =IF(R66="","",Eckdaten!$A$2-T66+1) ->  | U66: =IF(V66="","",V66+(W66*Eckdaten!$A$9)) ->  | X66: =IF(V66="","",Eckdaten!$A$2-Y66+1) ->  | AA66: =IF(Tabelle1!$Z66="","",Eckdaten!$A$2-Tabelle1!$AB66+1) ->  | AD66: =IF(Tabelle1!$AC66="","",Eckdaten!$A$2-AE66+1) ->  | AF66: =SUM(Tabelle1!$S66,Tabelle1!$P66,Tabelle1!$M66,Tabelle1!$J66,Tabelle1!$G66,Tabelle1!$D66,AA66,AD66,X66) -> 0
A67: 9F | D67: =IF(Tabelle1!$C67="","",Eckdaten!$A$2-Tabelle1!$E67+1) ->  | G67: =IF(Tabelle1!$F67="","",Eckdaten!$A$2-Tabelle1!$H67+1) ->  | J67: =IF(Tabelle1!$I67="","",Eckdaten!$A$2-K67+1) ->  | M67: =IF(L67="","",Eckdaten!$A$2-N67+1) ->  | P67: =IF(Tabelle1!$O67="","",Eckdaten!$A$2-Q67+1) ->  | S67: =IF(R67="","",Eckdaten!$A$2-T67+1) ->  | U67: =IF(V67="","",V67+(W67*Eckdaten!$A$9)) ->  | X67: =IF(V67="","",Eckdaten!$A$2-Y67+1) ->  | AA67: =IF(Tabelle1!$Z67="","",Eckdaten!$A$2-Tabelle1!$AB67+1) ->  | AD67: =IF(Tabelle1!$AC67="","",Eckdaten!$A$2-AE67+1) ->  | AF67: =SUM(Tabelle1!$S67,Tabelle1!$P67,Tabelle1!$M67,Tabelle1!$J67,Tabelle1!$G67,Tabelle1!$D67,AA67,AD67,X67) -> 0
A68: 10F | D68: =IF(Tabelle1!$C68="","",Eckdaten!$A$2-Tabelle1!$E68+1) ->  | G68: =IF(Tabelle1!$F68="","",Eckdaten!$A$2-Tabelle1!$H68+1) ->  | J68: =IF(Tabelle1!$I68="","",Eckdaten!$A$2-K68+1) ->  | M68: =IF(L68="","",Eckdaten!$A$2-N68+1) ->  | P68: =IF(Tabelle1!$O68="","",Eckdaten!$A$2-Q68+1) ->  | S68: =IF(R68="","",Eckdaten!$A$2-T68+1) ->  | U68: =IF(V68="","",V68+(W68*Eckdaten!$A$9)) ->  | X68: =IF(V68="","",Eckdaten!$A$2-Y68+1) ->  | AA68: =IF(Tabelle1!$Z68="","",Eckdaten!$A$2-Tabelle1!$AB68+1) ->  | AD68: =IF(Tabelle1!$AC68="","",Eckdaten!$A$2-AE68+1) ->  | AF68: =SUM(Tabelle1!$S68,Tabelle1!$P68,Tabelle1!$M68,Tabelle1!$J68,Tabelle1!$G68,Tabelle1!$D68,AA68,AD68,X68) -> 0
A69: 11F | D69: =IF(Tabelle1!$C69="","",Eckdaten!$A$2-Tabelle1!$E69+1) ->  | G69: =IF(Tabelle1!$F69="","",Eckdaten!$A$2-Tabelle1!$H69+1) ->  | J69: =IF(Tabelle1!$I69="","",Eckdaten!$A$2-K69+1) ->  | M69: =IF(L69="","",Eckdaten!$A$2-N69+1) ->  | P69: =IF(Tabelle1!$O69="","",Eckdaten!$A$2-Q69+1) ->  | S69: =IF(R69="","",Eckdaten!$A$2-T69+1) ->  | U69: =IF(V69="","",V69+(W69*Eckdaten!$A$9)) ->  | X69: =IF(V69="","",Eckdaten!$A$2-Y69+1) ->  | AA69: =IF(Tabelle1!$Z69="","",Eckdaten!$A$2-Tabelle1!$AB69+1) ->  | AD69: =IF(Tabelle1!$AC69="","",Eckdaten!$A$2-AE69+1) ->  | AF69: =SUM(Tabelle1!$S69,Tabelle1!$P69,Tabelle1!$M69,Tabelle1!$J69,Tabelle1!$G69,Tabelle1!$D69,AA69,AD69,X69) -> 0
A70: 12F | D70: =IF(Tabelle1!$C70="","",Eckdaten!$A$2-Tabelle1!$E70+1) ->  | G70: =IF(Tabelle1!$F70="","",Eckdaten!$A$2-Tabelle1!$H70+1) ->  | J70: =IF(Tabelle1!$I70="","",Eckdaten!$A$2-K70+1) ->  | M70: =IF(L70="","",Eckdaten!$A$2-N70+1) ->  | P70: =IF(Tabelle1!$O70="","",Eckdaten!$A$2-Q70+1) ->  | S70: =IF(R70="","",Eckdaten!$A$2-T70+1) ->  | U70: =IF(V70="","",V70+(W70*Eckdaten!$A$9)) ->  | X70: =IF(V70="","",Eckdaten!$A$2-Y70+1) ->  | AA70: =IF(Tabelle1!$Z70="","",Eckdaten!$A$2-Tabelle1!$AB70+1) ->  | AD70: =IF(Tabelle1!$AC70="","",Eckdaten!$A$2-AE70+1) ->  | AF70: =SUM(Tabelle1!$S70,Tabelle1!$P70,Tabelle1!$M70,Tabelle1!$J70,Tabelle1!$G70,Tabelle1!$D70,AA70,AD70,X70) -> 0
A71: 13F | D71: =IF(Tabelle1!$C71="","",Eckdaten!$A$2-Tabelle1!$E71+1) ->  | G71: =IF(Tabelle1!$F71="","",Eckdaten!$A$2-Tabelle1!$H71+1) ->  | J71: =IF(Tabelle1!$I71="","",Eckdaten!$A$2-K71+1) ->  | M71: =IF(L71="","",Eckdaten!$A$2-N71+1) ->  | P71: =IF(Tabelle1!$O71="","",Eckdaten!$A$2-Q71+1) ->  | S71: =IF(R71="","",Eckdaten!$A$2-T71+1) ->  | U71: =IF(V71="","",V71+(W71*Eckdaten!$A$9)) ->  | X71: =IF(V71="","",Eckdaten!$A$2-Y71+1) ->  | AA71: =IF(Tabelle1!$Z71="","",Eckdaten!$A$2-Tabelle1!$AB71+1) ->  | AD71: =IF(Tabelle1!$AC71="","",Eckdaten!$A$2-AE71+1) ->  | AF71: =SUM(Tabelle1!$S71,Tabelle1!$P71,Tabelle1!$M71,Tabelle1!$J71,Tabelle1!$G71,Tabelle1!$D71,AA71,AD71,X71) -> 0
A72: 14F | D72: =IF(Tabelle1!$C72="","",Eckdaten!$A$2-Tabelle1!$E72+1) ->  | G72: =IF(Tabelle1!$F72="","",Eckdaten!$A$2-Tabelle1!$H72+1) ->  | J72: =IF(Tabelle1!$I72="","",Eckdaten!$A$2-K72+1) ->  | M72: =IF(L72="","",Eckdaten!$A$2-N72+1) ->  | P72: =IF(Tabelle1!$O72="","",Eckdaten!$A$2-Q72+1) ->  | S72: =IF(R72="","",Eckdaten!$A$2-T72+1) ->  | U72: =IF(V72="","",V72+(W72*Eckdaten!$A$9)) ->  | X72: =IF(V72="","",Eckdaten!$A$2-Y72+1) ->  | AA72: =IF(Tabelle1!$Z72="","",Eckdaten!$A$2-Tabelle1!$AB72+1) ->  | AD72: =IF(Tabelle1!$AC72="","",Eckdaten!$A$2-AE72+1) ->  | AF72: =SUM(Tabelle1!$S72,Tabelle1!$P72,Tabelle1!$M72,Tabelle1!$J72,Tabelle1!$G72,Tabelle1!$D72,AA72,AD72,X72) -> 0
A73: 15F | D73: =IF(Tabelle1!$C73="","",Eckdaten!$A$2-Tabelle1!$E73+1) ->  | G73: =IF(Tabelle1!$F73="","",Eckdaten!$A$2-Tabelle1!$H73+1) ->  | J73: =IF(Tabelle1!$I73="","",Eckdaten!$A$2-K73+1) ->  | M73: =IF(L73="","",Eckdaten!$A$2-N73+1) ->  | P73: =IF(Tabelle1!$O73="","",Eckdaten!$A$2-Q73+1) ->  | S73: =IF(R73="","",Eckdaten!$A$2-T73+1) ->  | U73: =IF(V73="","",V73+(W73*Eckdaten!$A$9)) ->  | X73: =IF(V73="","",Eckdaten!$A$2-Y73+1) ->  | AA73: =IF(Tabelle1!$Z73="","",Eckdaten!$A$2-Tabelle1!$AB73+1) ->  | AD73: =IF(Tabelle1!$AC73="","",Eckdaten!$A$2-AE73+1) ->  | AF73: =SUM(Tabelle1!$S73,Tabelle1!$P73,Tabelle1!$M73,Tabelle1!$J73,Tabelle1!$G73,Tabelle1!$D73,AA73,AD73,X73) -> 0
A74: 16F | D74: =IF(Tabelle1!$C74="","",Eckdaten!$A$2-Tabelle1!$E74+1) ->  | G74: =IF(Tabelle1!$F74="","",Eckdaten!$A$2-Tabelle1!$H74+1) ->  | J74: =IF(Tabelle1!$I74="","",Eckdaten!$A$2-K74+1) ->  | M74: =IF(L74="","",Eckdaten!$A$2-N74+1) ->  | P74: =IF(Tabelle1!$O74="","",Eckdaten!$A$2-Q74+1) ->  | S74: =IF(R74="","",Eckdaten!$A$2-T74+1) ->  | U74: =IF(V74="","",V74+(W74*Eckdaten!$A$9)) ->  | X74: =IF(V74="","",Eckdaten!$A$2-Y74+1) ->  | AA74: =IF(Tabelle1!$Z74="","",Eckdaten!$A$2-Tabelle1!$AB74+1) ->  | AD74: =IF(Tabelle1!$AC74="","",Eckdaten!$A$2-AE74+1) ->  | AF74: =SUM(Tabelle1!$S74,Tabelle1!$P74,Tabelle1!$M74,Tabelle1!$J74,Tabelle1!$G74,Tabelle1!$D74,AA74,AD74,X74) -> 0
A75: 17F | D75: =IF(Tabelle1!$C75="","",Eckdaten!$A$2-Tabelle1!$E75+1) ->  | G75: =IF(Tabelle1!$F75="","",Eckdaten!$A$2-Tabelle1!$H75+1) ->  | J75: =IF(Tabelle1!$I75="","",Eckdaten!$A$2-K75+1) ->  | M75: =IF(L75="","",Eckdaten!$A$2-N75+1) ->  | P75: =IF(Tabelle1!$O75="","",Eckdaten!$A$2-Q75+1) ->  | S75: =IF(R75="","",Eckdaten!$A$2-T75+1) ->  | U75: =IF(V75="","",V75+(W75*Eckdaten!$A$9)) ->  | X75: =IF(V75="","",Eckdaten!$A$2-Y75+1) ->  | AA75: =IF(Tabelle1!$Z75="","",Eckdaten!$A$2-Tabelle1!$AB75+1) ->  | AD75: =IF(Tabelle1!$AC75="","",Eckdaten!$A$2-AE75+1) ->  | AF75: =SUM(Tabelle1!$S75,Tabelle1!$P75,Tabelle1!$M75,Tabelle1!$J75,Tabelle1!$G75,Tabelle1!$D75,AA75,AD75,X75) -> 0
A76: 18F | D76: =IF(Tabelle1!$C76="","",Eckdaten!$A$2-Tabelle1!$E76+1) ->  | G76: =IF(Tabelle1!$F76="","",Eckdaten!$A$2-Tabelle1!$H76+1) ->  | J76: =IF(Tabelle1!$I76="","",Eckdaten!$A$2-K76+1) ->  | M76: =IF(L76="","",Eckdaten!$A$2-N76+1) ->  | P76: =IF(Tabelle1!$O76="","",Eckdaten!$A$2-Q76+1) ->  | S76: =IF(R76="","",Eckdaten!$A$2-T76+1) ->  | U76: =IF(V76="","",V76+(W76*Eckdaten!$A$9)) ->  | X76: =IF(V76="","",Eckdaten!$A$2-Y76+1) ->  | AA76: =IF(Tabelle1!$Z76="","",Eckdaten!$A$2-Tabelle1!$AB76+1) ->  | AD76: =IF(Tabelle1!$AC76="","",Eckdaten!$A$2-AE76+1) ->  | AF76: =SUM(Tabelle1!$S76,Tabelle1!$P76,Tabelle1!$M76,Tabelle1!$J76,Tabelle1!$G76,Tabelle1!$D76,AA76,AD76,X76) -> 0
A77: 19F | D77: =IF(Tabelle1!$C77="","",Eckdaten!$A$2-Tabelle1!$E77+1) ->  | G77: =IF(Tabelle1!$F77="","",Eckdaten!$A$2-Tabelle1!$H77+1) ->  | J77: =IF(Tabelle1!$I77="","",Eckdaten!$A$2-K77+1) ->  | M77: =IF(L77="","",Eckdaten!$A$2-N77+1) ->  | P77: =IF(Tabelle1!$O77="","",Eckdaten!$A$2-Q77+1) ->  | S77: =IF(R77="","",Eckdaten!$A$2-T77+1) ->  | U77: =IF(V77="","",V77+(W77*Eckdaten!$A$9)) ->  | X77: =IF(V77="","",Eckdaten!$A$2-Y77+1) ->  | AA77: =IF(Tabelle1!$Z77="","",Eckdaten!$A$2-Tabelle1!$AB77+1) ->  | AD77: =IF(Tabelle1!$AC77="","",Eckdaten!$A$2-AE77+1) ->  | AF77: =SUM(Tabelle1!$S77,Tabelle1!$P77,Tabelle1!$M77,Tabelle1!$J77,Tabelle1!$G77,Tabelle1!$D77,AA77,AD77,X77) -> 0
A78: 20F | D78: =IF(Tabelle1!$C78="","",Eckdaten!$A$2-Tabelle1!$E78+1) ->  | G78: =IF(Tabelle1!$F78="","",Eckdaten!$A$2-Tabelle1!$H78+1) ->  | J78: =IF(Tabelle1!$I78="","",Eckdaten!$A$2-K78+1) ->  | M78: =IF(L78="","",Eckdaten!$A$2-N78+1) ->  | P78: =IF(Tabelle1!$O78="","",Eckdaten!$A$2-Q78+1) ->  | S78: =IF(R78="","",Eckdaten!$A$2-T78+1) ->  | U78: =IF(V78="","",V78+(W78*Eckdaten!$A$9)) ->  | X78: =IF(V78="","",Eckdaten!$A$2-Y78+1) ->  | AA78: =IF(Tabelle1!$Z78="","",Eckdaten!$A$2-Tabelle1!$AB78+1) ->  | AD78: =IF(Tabelle1!$AC78="","",Eckdaten!$A$2-AE78+1) ->  | AF78: =SUM(Tabelle1!$S78,Tabelle1!$P78,Tabelle1!$M78,Tabelle1!$J78,Tabelle1!$G78,Tabelle1!$D78,AA78,AD78,X78) -> 0
A79: 21F | D79: =IF(Tabelle1!$C79="","",Eckdaten!$A$2-Tabelle1!$E79+1) ->  | G79: =IF(Tabelle1!$F79="","",Eckdaten!$A$2-Tabelle1!$H79+1) ->  | J79: =IF(Tabelle1!$I79="","",Eckdaten!$A$2-K79+1) ->  | M79: =IF(L79="","",Eckdaten!$A$2-N79+1) ->  | P79: =IF(Tabelle1!$O79="","",Eckdaten!$A$2-Q79+1) ->  | S79: =IF(R79="","",Eckdaten!$A$2-T79+1) ->  | U79: =IF(V79="","",V79+(W79*Eckdaten!$A$9)) ->  | X79: =IF(V79="","",Eckdaten!$A$2-Y79+1) ->  | AA79: =IF(Tabelle1!$Z79="","",Eckdaten!$A$2-Tabelle1!$AB79+1) ->  | AD79: =IF(Tabelle1!$AC79="","",Eckdaten!$A$2-AE79+1) ->  | AF79: =SUM(Tabelle1!$S79,Tabelle1!$P79,Tabelle1!$M79,Tabelle1!$J79,Tabelle1!$G79,Tabelle1!$D79,AA79,AD79,X79) -> 0
A80: 22F | D80: =IF(Tabelle1!$C80="","",Eckdaten!$A$2-Tabelle1!$E80+1) ->  | G80: =IF(Tabelle1!$F80="","",Eckdaten!$A$2-Tabelle1!$H80+1) ->  | J80: =IF(Tabelle1!$I80="","",Eckdaten!$A$2-K80+1) ->  | M80: =IF(L80="","",Eckdaten!$A$2-N80+1) ->  | P80: =IF(Tabelle1!$O80="","",Eckdaten!$A$2-Q80+1) ->  | S80: =IF(R80="","",Eckdaten!$A$2-T80+1) ->  | U80: =IF(V80="","",V80+(W80*Eckdaten!$A$9)) ->  | X80: =IF(V80="","",Eckdaten!$A$2-Y80+1) ->  | AA80: =IF(Tabelle1!$Z80="","",Eckdaten!$A$2-Tabelle1!$AB80+1) ->  | AD80: =IF(Tabelle1!$AC80="","",Eckdaten!$A$2-AE80+1) ->  | AF80: =SUM(Tabelle1!$S80,Tabelle1!$P80,Tabelle1!$M80,Tabelle1!$J80,Tabelle1!$G80,Tabelle1!$D80,AA80,AD80,X80) -> 0
A81: 23F | D81: =IF(Tabelle1!$C81="","",Eckdaten!$A$2-Tabelle1!$E81+1) ->  | G81: =IF(Tabelle1!$F81="","",Eckdaten!$A$2-Tabelle1!$H81+1) ->  | J81: =IF(Tabelle1!$I81="","",Eckdaten!$A$2-K81+1) ->  | M81: =IF(L81="","",Eckdaten!$A$2-N81+1) ->  | P81: =IF(Tabelle1!$O81="","",Eckdaten!$A$2-Q81+1) ->  | S81: =IF(R81="","",Eckdaten!$A$2-T81+1) ->  | U81: =IF(V81="","",V81+(W81*Eckdaten!$A$9)) ->  | X81: =IF(V81="","",Eckdaten!$A$2-Y81+1) ->  | AA81: =IF(Tabelle1!$Z81="","",Eckdaten!$A$2-Tabelle1!$AB81+1) ->  | AD81: =IF(Tabelle1!$AC81="","",Eckdaten!$A$2-AE81+1) ->  | AF81: =SUM(Tabelle1!$S81,Tabelle1!$P81,Tabelle1!$M81,Tabelle1!$J81,Tabelle1!$G81,Tabelle1!$D81,AA81,AD81,X81) -> 0
A82: 24F | D82: =IF(Tabelle1!$C82="","",Eckdaten!$A$2-Tabelle1!$E82+1) ->  | G82: =IF(Tabelle1!$F82="","",Eckdaten!$A$2-Tabelle1!$H82+1) ->  | J82: =IF(Tabelle1!$I82="","",Eckdaten!$A$2-K82+1) ->  | M82: =IF(L82="","",Eckdaten!$A$2-N82+1) ->  | P82: =IF(Tabelle1!$O82="","",Eckdaten!$A$2-Q82+1) ->  | S82: =IF(R82="","",Eckdaten!$A$2-T82+1) ->  | U82: =IF(V82="","",V82+(W82*Eckdaten!$A$9)) ->  | X82: =IF(V82="","",Eckdaten!$A$2-Y82+1) ->  | AA82: =IF(Tabelle1!$Z82="","",Eckdaten!$A$2-Tabelle1!$AB82+1) ->  | AD82: =IF(Tabelle1!$AC82="","",Eckdaten!$A$2-AE82+1) ->  | AF82: =SUM(Tabelle1!$S82,Tabelle1!$P82,Tabelle1!$M82,Tabelle1!$J82,Tabelle1!$G82,Tabelle1!$D82,AA82,AD82,X82) -> 0
A83: 25F | D83: =IF(Tabelle1!$C83="","",Eckdaten!$A$2-Tabelle1!$E83+1) ->  | G83: =IF(Tabelle1!$F83="","",Eckdaten!$A$2-Tabelle1!$H83+1) ->  | J83: =IF(Tabelle1!$I83="","",Eckdaten!$A$2-K83+1) ->  | M83: =IF(L83="","",Eckdaten!$A$2-N83+1) ->  | P83: =IF(Tabelle1!$O83="","",Eckdaten!$A$2-Q83+1) ->  | S83: =IF(R83="","",Eckdaten!$A$2-T83+1) ->  | U83: =IF(V83="","",V83+(W83*Eckdaten!$A$9)) ->  | X83: =IF(V83="","",Eckdaten!$A$2-Y83+1) ->  | AA83: =IF(Tabelle1!$Z83="","",Eckdaten!$A$2-Tabelle1!$AB83+1) ->  | AD83: =IF(Tabelle1!$AC83="","",Eckdaten!$A$2-AE83+1) ->  | AF83: =SUM(Tabelle1!$S83,Tabelle1!$P83,Tabelle1!$M83,Tabelle1!$J83,Tabelle1!$G83,Tabelle1!$D83,AA83,AD83,X83) -> 0
A84: 26F | D84: =IF(Tabelle1!$C84="","",Eckdaten!$A$2-Tabelle1!$E84+1) ->  | G84: =IF(Tabelle1!$F84="","",Eckdaten!$A$2-Tabelle1!$H84+1) ->  | J84: =IF(Tabelle1!$I84="","",Eckdaten!$A$2-K84+1) ->  | M84: =IF(L84="","",Eckdaten!$A$2-N84+1) ->  | P84: =IF(Tabelle1!$O84="","",Eckdaten!$A$2-Q84+1) ->  | S84: =IF(R84="","",Eckdaten!$A$2-T84+1) ->  | U84: =IF(V84="","",V84+(W84*Eckdaten!$A$9)) ->  | X84: =IF(V84="","",Eckdaten!$A$2-Y84+1) ->  | AA84: =IF(Tabelle1!$Z84="","",Eckdaten!$A$2-Tabelle1!$AB84+1) ->  | AD84: =IF(Tabelle1!$AC84="","",Eckdaten!$A$2-AE84+1) ->  | AF84: =SUM(Tabelle1!$S84,Tabelle1!$P84,Tabelle1!$M84,Tabelle1!$J84,Tabelle1!$G84,Tabelle1!$D84,AA84,AD84,X84) -> 0
A85: 27F | D85: =IF(Tabelle1!$C85="","",Eckdaten!$A$2-Tabelle1!$E85+1) ->  | G85: =IF(Tabelle1!$F85="","",Eckdaten!$A$2-Tabelle1!$H85+1) ->  | J85: =IF(Tabelle1!$I85="","",Eckdaten!$A$2-K85+1) ->  | M85: =IF(L85="","",Eckdaten!$A$2-N85+1) ->  | P85: =IF(Tabelle1!$O85="","",Eckdaten!$A$2-Q85+1) ->  | S85: =IF(R85="","",Eckdaten!$A$2-T85+1) ->  | U85: =IF(V85="","",V85+(W85*Eckdaten!$A$9)) ->  | X85: =IF(V85="","",Eckdaten!$A$2-Y85+1) ->  | AA85: =IF(Tabelle1!$Z85="","",Eckdaten!$A$2-Tabelle1!$AB85+1) ->  | AD85: =IF(Tabelle1!$AC85="","",Eckdaten!$A$2-AE85+1) ->  | AF85: =SUM(Tabelle1!$S85,Tabelle1!$P85,Tabelle1!$M85,Tabelle1!$J85,Tabelle1!$G85,Tabelle1!$D85,AA85,AD85,X85) -> 0
A86: 28F | D86: =IF(Tabelle1!$C86="","",Eckdaten!$A$2-Tabelle1!$E86+1) ->  | G86: =IF(Tabelle1!$F86="","",Eckdaten!$A$2-Tabelle1!$H86+1) ->  | J86: =IF(Tabelle1!$I86="","",Eckdaten!$A$2-K86+1) ->  | M86: =IF(L86="","",Eckdaten!$A$2-N86+1) ->  | P86: =IF(Tabelle1!$O86="","",Eckdaten!$A$2-Q86+1) ->  | S86: =IF(R86="","",Eckdaten!$A$2-T86+1) ->  | U86: =IF(V86="","",V86+(W86*Eckdaten!$A$9)) ->  | X86: =IF(V86="","",Eckdaten!$A$2-Y86+1) ->  | AA86: =IF(Tabelle1!$Z86="","",Eckdaten!$A$2-Tabelle1!$AB86+1) ->  | AD86: =IF(Tabelle1!$AC86="","",Eckdaten!$A$2-AE86+1) ->  | AF86: =SUM(Tabelle1!$S86,Tabelle1!$P86,Tabelle1!$M86,Tabelle1!$J86,Tabelle1!$G86,Tabelle1!$D86,AA86,AD86,X86) -> 0
A87: 29F | D87: =IF(Tabelle1!$C87="","",Eckdaten!$A$2-Tabelle1!$E87+1) ->  | G87: =IF(Tabelle1!$F87="","",Eckdaten!$A$2-Tabelle1!$H87+1) ->  | J87: =IF(Tabelle1!$I87="","",Eckdaten!$A$2-K87+1) ->  | M87: =IF(L87="","",Eckdaten!$A$2-N87+1) ->  | P87: =IF(Tabelle1!$O87="","",Eckdaten!$A$2-Q87+1) ->  | S87: =IF(R87="","",Eckdaten!$A$2-T87+1) ->  | U87: =IF(V87="","",V87+(W87*Eckdaten!$A$9)) ->  | X87: =IF(V87="","",Eckdaten!$A$2-Y87+1) ->  | AA87: =IF(Tabelle1!$Z87="","",Eckdaten!$A$2-Tabelle1!$AB87+1) ->  | AD87: =IF(Tabelle1!$AC87="","",Eckdaten!$A$2-AE87+1) ->  | AF87: =SUM(Tabelle1!$S87,Tabelle1!$P87,Tabelle1!$M87,Tabelle1!$J87,Tabelle1!$G87,Tabelle1!$D87,AA87,AD87,X87) -> 0
A88: 30F | D88: =IF(Tabelle1!$C88="","",Eckdaten!$A$2-Tabelle1!$E88+1) ->  | G88: =IF(Tabelle1!$F88="","",Eckdaten!$A$2-Tabelle1!$H88+1) ->  | J88: =IF(Tabelle1!$I88="","",Eckdaten!$A$2-K88+1) ->  | M88: =IF(L88="","",Eckdaten!$A$2-N88+1) ->  | P88: =IF(Tabelle1!$O88="","",Eckdaten!$A$2-Q88+1) ->  | S88: =IF(R88="","",Eckdaten!$A$2-T88+1) ->  | U88: =IF(V88="","",V88+(W88*Eckdaten!$A$9)) ->  | X88: =IF(V88="","",Eckdaten!$A$2-Y88+1) ->  | AA88: =IF(Tabelle1!$Z88="","",Eckdaten!$A$2-Tabelle1!$AB88+1) ->  | AD88: =IF(Tabelle1!$AC88="","",Eckdaten!$A$2-AE88+1) ->  | AF88: =SUM(Tabelle1!$S88,Tabelle1!$P88,Tabelle1!$M88,Tabelle1!$J88,Tabelle1!$G88,Tabelle1!$D88,AA88,AD88,X88) -> 0
A89: 31F | D89: =IF(Tabelle1!$C89="","",Eckdaten!$A$2-Tabelle1!$E89+1) ->  | G89: =IF(Tabelle1!$F89="","",Eckdaten!$A$2-Tabelle1!$H89+1) ->  | J89: =IF(Tabelle1!$I89="","",Eckdaten!$A$2-K89+1) ->  | M89: =IF(L89="","",Eckdaten!$A$2-N89+1) ->  | P89: =IF(Tabelle1!$O89="","",Eckdaten!$A$2-Q89+1) ->  | S89: =IF(R89="","",Eckdaten!$A$2-T89+1) ->  | U89: =IF(V89="","",V89+(W89*Eckdaten!$A$9)) ->  | X89: =IF(V89="","",Eckdaten!$A$2-Y89+1) ->  | AA89: =IF(Tabelle1!$Z89="","",Eckdaten!$A$2-Tabelle1!$AB89+1) ->  | AD89: =IF(Tabelle1!$AC89="","",Eckdaten!$A$2-AE89+1) ->  | AF89: =SUM(Tabelle1!$S89,Tabelle1!$P89,Tabelle1!$M89,Tabelle1!$J89,Tabelle1!$G89,Tabelle1!$D89,AA89,AD89,X89) -> 0
A90: 32F | D90: =IF(Tabelle1!$C90="","",Eckdaten!$A$2-Tabelle1!$E90+1) ->  | G90: =IF(Tabelle1!$F90="","",Eckdaten!$A$2-Tabelle1!$H90+1) ->  | J90: =IF(Tabelle1!$I90="","",Eckdaten!$A$2-K90+1) ->  | M90: =IF(L90="","",Eckdaten!$A$2-N90+1) ->  | P90: =IF(Tabelle1!$O90="","",Eckdaten!$A$2-Q90+1) ->  | S90: =IF(R90="","",Eckdaten!$A$2-T90+1) ->  | U90: =IF(V90="","",V90+(W90*Eckdaten!$A$9)) ->  | X90: =IF(V90="","",Eckdaten!$A$2-Y90+1) ->  | AA90: =IF(Tabelle1!$Z90="","",Eckdaten!$A$2-Tabelle1!$AB90+1) ->  | AD90: =IF(Tabelle1!$AC90="","",Eckdaten!$A$2-AE90+1) ->  | AF90: =SUM(Tabelle1!$S90,Tabelle1!$P90,Tabelle1!$M90,Tabelle1!$J90,Tabelle1!$G90,Tabelle1!$D90,AA90,AD90,X90) -> 0
A91: 33F | D91: =IF(Tabelle1!$C91="","",Eckdaten!$A$2-Tabelle1!$E91+1) ->  | G91: =IF(Tabelle1!$F91="","",Eckdaten!$A$2-Tabelle1!$H91+1) ->  | J91: =IF(Tabelle1!$I91="","",Eckdaten!$A$2-K91+1) ->  | K91: =IF(I91=0,"",RANK(I91,$I$6:$I$153,)) ->  | M91: =IF(L91="","",Eckdaten!$A$2-N91+1) ->  | P91: =IF(Tabelle1!$O91="","",Eckdaten!$A$2-Q91+1) ->  | S91: =IF(R91="","",Eckdaten!$A$2-T91+1) ->  | U91: =IF(V91="","",V91+(W91*Eckdaten!$A$9)) ->  | X91: =IF(V91="","",Eckdaten!$A$2-Y91+1) ->  | AA91: =IF(Tabelle1!$Z91="","",Eckdaten!$A$2-Tabelle1!$AB91+1) ->  | AD91: =IF(Tabelle1!$AC91="","",Eckdaten!$A$2-AE91+1) ->  | AF91: =SUM(Tabelle1!$S91,Tabelle1!$P91,Tabelle1!$M91,Tabelle1!$J91,Tabelle1!$G91,Tabelle1!$D91,AA91,AD91,X91) -> 0
A92: 34F | D92: =IF(Tabelle1!$C92="","",Eckdaten!$A$2-Tabelle1!$E92+1) ->  | G92: =IF(Tabelle1!$F92="","",Eckdaten!$A$2-Tabelle1!$H92+1) ->  | J92: =IF(Tabelle1!$I92="","",Eckdaten!$A$2-K92+1) ->  | M92: =IF(L92="","",Eckdaten!$A$2-N92+1) ->  | P92: =IF(Tabelle1!$O92="","",Eckdaten!$A$2-Q92+1) ->  | S92: =IF(R92="","",Eckdaten!$A$2-T92+1) ->  | U92: =IF(V92="","",V92+(W92*Eckdaten!$A$9)) ->  | X92: =IF(V92="","",Eckdaten!$A$2-Y92+1) ->  | AA92: =IF(Tabelle1!$Z92="","",Eckdaten!$A$2-Tabelle1!$AB92+1) ->  | AD92: =IF(Tabelle1!$AC92="","",Eckdaten!$A$2-AE92+1) ->  | AF92: =SUM(Tabelle1!$S92,Tabelle1!$P92,Tabelle1!$M92,Tabelle1!$J92,Tabelle1!$G92,Tabelle1!$D92,AA92,AD92,X92) -> 0
A93: 35F | D93: =IF(Tabelle1!$C93="","",Eckdaten!$A$2-Tabelle1!$E93+1) ->  | G93: =IF(Tabelle1!$F93="","",Eckdaten!$A$2-Tabelle1!$H93+1) ->  | J93: =IF(Tabelle1!$I93="","",Eckdaten!$A$2-K93+1) ->  | M93: =IF(L93="","",Eckdaten!$A$2-N93+1) ->  | P93: =IF(Tabelle1!$O93="","",Eckdaten!$A$2-Q93+1) ->  | S93: =IF(R93="","",Eckdaten!$A$2-T93+1) ->  | U93: =IF(V93="","",V93+(W93*Eckdaten!$A$9)) ->  | X93: =IF(V93="","",Eckdaten!$A$2-Y93+1) ->  | AA93: =IF(Tabelle1!$Z93="","",Eckdaten!$A$2-Tabelle1!$AB93+1) ->  | AD93: =IF(Tabelle1!$AC93="","",Eckdaten!$A$2-AE93+1) ->  | AF93: =SUM(Tabelle1!$S93,Tabelle1!$P93,Tabelle1!$M93,Tabelle1!$J93,Tabelle1!$G93,Tabelle1!$D93,AA93,AD93,X93) -> 0
A94: 36F | D94: =IF(Tabelle1!$C94="","",Eckdaten!$A$2-Tabelle1!$E94+1) ->  | G94: =IF(Tabelle1!$F94="","",Eckdaten!$A$2-Tabelle1!$H94+1) ->  | J94: =IF(Tabelle1!$I94="","",Eckdaten!$A$2-K94+1) ->  | M94: =IF(L94="","",Eckdaten!$A$2-N94+1) ->  | P94: =IF(Tabelle1!$O94="","",Eckdaten!$A$2-Q94+1) ->  | S94: =IF(R94="","",Eckdaten!$A$2-T94+1) ->  | U94: =IF(V94="","",V94+(W94*Eckdaten!$A$9)) ->  | X94: =IF(V94="","",Eckdaten!$A$2-Y94+1) ->  | AA94: =IF(Tabelle1!$Z94="","",Eckdaten!$A$2-Tabelle1!$AB94+1) ->  | AD94: =IF(Tabelle1!$AC94="","",Eckdaten!$A$2-AE94+1) ->  | AF94: =SUM(Tabelle1!$S94,Tabelle1!$P94,Tabelle1!$M94,Tabelle1!$J94,Tabelle1!$G94,Tabelle1!$D94,AA94,AD94,X94) -> 0
A95: 37F | D95: =IF(Tabelle1!$C95="","",Eckdaten!$A$2-Tabelle1!$E95+1) ->  | G95: =IF(Tabelle1!$F95="","",Eckdaten!$A$2-Tabelle1!$H95+1) ->  | J95: =IF(Tabelle1!$I95="","",Eckdaten!$A$2-K95+1) ->  | M95: =IF(L95="","",Eckdaten!$A$2-N95+1) ->  | P95: =IF(Tabelle1!$O95="","",Eckdaten!$A$2-Q95+1) ->  | S95: =IF(R95="","",Eckdaten!$A$2-T95+1) ->  | U95: =IF(V95="","",V95+(W95*Eckdaten!$A$9)) ->  | X95: =IF(V95="","",Eckdaten!$A$2-Y95+1) ->  | AA95: =IF(Tabelle1!$Z95="","",Eckdaten!$A$2-Tabelle1!$AB95+1) ->  | AD95: =IF(Tabelle1!$AC95="","",Eckdaten!$A$2-AE95+1) ->  | AF95: =SUM(Tabelle1!$S95,Tabelle1!$P95,Tabelle1!$M95,Tabelle1!$J95,Tabelle1!$G95,Tabelle1!$D95,AA95,AD95,X95) -> 0
A96: 38F | D96: =IF(Tabelle1!$C96="","",Eckdaten!$A$2-Tabelle1!$E96+1) ->  | G96: =IF(Tabelle1!$F96="","",Eckdaten!$A$2-Tabelle1!$H96+1) ->  | J96: =IF(Tabelle1!$I96="","",Eckdaten!$A$2-K96+1) ->  | M96: =IF(L96="","",Eckdaten!$A$2-N96+1) ->  | P96: =IF(Tabelle1!$O96="","",Eckdaten!$A$2-Q96+1) ->  | S96: =IF(R96="","",Eckdaten!$A$2-T96+1) ->  | U96: =IF(V96="","",V96+(W96*Eckdaten!$A$9)) ->  | X96: =IF(V96="","",Eckdaten!$A$2-Y96+1) ->  | AA96: =IF(Tabelle1!$Z96="","",Eckdaten!$A$2-Tabelle1!$AB96+1) ->  | AD96: =IF(Tabelle1!$AC96="","",Eckdaten!$A$2-AE96+1) ->  | AF96: =SUM(Tabelle1!$S96,Tabelle1!$P96,Tabelle1!$M96,Tabelle1!$J96,Tabelle1!$G96,Tabelle1!$D96,AA96,AD96,X96) -> 0
A97: 39F | D97: =IF(Tabelle1!$C97="","",Eckdaten!$A$2-Tabelle1!$E97+1) ->  | G97: =IF(Tabelle1!$F97="","",Eckdaten!$A$2-Tabelle1!$H97+1) ->  | J97: =IF(Tabelle1!$I97="","",Eckdaten!$A$2-K97+1) ->  | M97: =IF(L97="","",Eckdaten!$A$2-N97+1) ->  | P97: =IF(Tabelle1!$O97="","",Eckdaten!$A$2-Q97+1) ->  | S97: =IF(R97="","",Eckdaten!$A$2-T97+1) ->  | U97: =IF(V97="","",V97+(W97*Eckdaten!$A$9)) ->  | X97: =IF(V97="","",Eckdaten!$A$2-Y97+1) ->  | AA97: =IF(Tabelle1!$Z97="","",Eckdaten!$A$2-Tabelle1!$AB97+1) ->  | AD97: =IF(Tabelle1!$AC97="","",Eckdaten!$A$2-AE97+1) ->  | AF97: =SUM(Tabelle1!$S97,Tabelle1!$P97,Tabelle1!$M97,Tabelle1!$J97,Tabelle1!$G97,Tabelle1!$D97,AA97,AD97,X97) -> 0
A98: 40F | D98: =IF(Tabelle1!$C98="","",Eckdaten!$A$2-Tabelle1!$E98+1) ->  | G98: =IF(Tabelle1!$F98="","",Eckdaten!$A$2-Tabelle1!$H98+1) ->  | J98: =IF(Tabelle1!$I98="","",Eckdaten!$A$2-K98+1) ->  | M98: =IF(L98="","",Eckdaten!$A$2-N98+1) ->  | P98: =IF(Tabelle1!$O98="","",Eckdaten!$A$2-Q98+1) ->  | S98: =IF(R98="","",Eckdaten!$A$2-T98+1) ->  | U98: =IF(V98="","",V98+(W98*Eckdaten!$A$9)) ->  | X98: =IF(V98="","",Eckdaten!$A$2-Y98+1) ->  | AA98: =IF(Tabelle1!$Z98="","",Eckdaten!$A$2-Tabelle1!$AB98+1) ->  | AD98: =IF(Tabelle1!$AC98="","",Eckdaten!$A$2-AE98+1) ->  | AF98: =SUM(Tabelle1!$S98,Tabelle1!$P98,Tabelle1!$M98,Tabelle1!$J98,Tabelle1!$G98,Tabelle1!$D98,AA98,AD98,X98) -> 0
A99: 41F | D99: =IF(Tabelle1!$C99="","",Eckdaten!$A$2-Tabelle1!$E99+1) ->  | G99: =IF(Tabelle1!$F99="","",Eckdaten!$A$2-Tabelle1!$H99+1) ->  | J99: =IF(Tabelle1!$I99="","",Eckdaten!$A$2-K99+1) ->  | M99: =IF(L99="","",Eckdaten!$A$2-N99+1) ->  | P99: =IF(Tabelle1!$O99="","",Eckdaten!$A$2-Q99+1) ->  | S99: =IF(R99="","",Eckdaten!$A$2-T99+1) ->  | U99: =IF(V99="","",V99+(W99*Eckdaten!$A$9)) ->  | X99: =IF(V99="","",Eckdaten!$A$2-Y99+1) ->  | AA99: =IF(Tabelle1!$Z99="","",Eckdaten!$A$2-Tabelle1!$AB99+1) ->  | AD99: =IF(Tabelle1!$AC99="","",Eckdaten!$A$2-AE99+1) ->  | AF99: =SUM(Tabelle1!$S99,Tabelle1!$P99,Tabelle1!$M99,Tabelle1!$J99,Tabelle1!$G99,Tabelle1!$D99,AA99,AD99,X99) -> 0
A100: 42F | D100: =IF(Tabelle1!$C100="","",Eckdaten!$A$2-Tabelle1!$E100+1) ->  | G100: =IF(Tabelle1!$F100="","",Eckdaten!$A$2-Tabelle1!$H100+1) ->  | J100: =IF(Tabelle1!$I100="","",Eckdaten!$A$2-K100+1) ->  | M100: =IF(L100="","",Eckdaten!$A$2-N100+1) ->  | P100: =IF(Tabelle1!$O100="","",Eckdaten!$A$2-Q100+1) ->  | S100: =IF(R100="","",Eckdaten!$A$2-T100+1) ->  | U100: =IF(V100="","",V100+(W100*Eckdaten!$A$9)) ->  | X100: =IF(V100="","",Eckdaten!$A$2-Y100+1) ->  | AA100: =IF(Tabelle1!$Z100="","",Eckdaten!$A$2-Tabelle1!$AB100+1) ->  | AD100: =IF(Tabelle1!$AC100="","",Eckdaten!$A$2-AE100+1) ->  | AF100: =SUM(Tabelle1!$S100,Tabelle1!$P100,Tabelle1!$M100,Tabelle1!$J100,Tabelle1!$G100,Tabelle1!$D100,AA100,AD100,X100) -> 0
A101: 43F | D101: =IF(Tabelle1!$C101="","",Eckdaten!$A$2-Tabelle1!$E101+1) ->  | G101: =IF(Tabelle1!$F101="","",Eckdaten!$A$2-Tabelle1!$H101+1) ->  | J101: =IF(Tabelle1!$I101="","",Eckdaten!$A$2-K101+1) ->  | M101: =IF(L101="","",Eckdaten!$A$2-N101+1) ->  | P101: =IF(Tabelle1!$O101="","",Eckdaten!$A$2-Q101+1) ->  | S101: =IF(R101="","",Eckdaten!$A$2-T101+1) ->  | U101: =IF(V101="","",V101+(W101*Eckdaten!$A$9)) ->  | X101: =IF(V101="","",Eckdaten!$A$2-Y101+1) ->  | AA101: =IF(Tabelle1!$Z101="","",Eckdaten!$A$2-Tabelle1!$AB101+1) ->  | AD101: =IF(Tabelle1!$AC101="","",Eckdaten!$A$2-AE101+1) ->  | AF101: =SUM(Tabelle1!$S101,Tabelle1!$P101,Tabelle1!$M101,Tabelle1!$J101,Tabelle1!$G101,Tabelle1!$D101,AA101,AD101,X101) -> 0
A102: 44F | D102: =IF(Tabelle1!$C102="","",Eckdaten!$A$2-Tabelle1!$E102+1) ->  | G102: =IF(Tabelle1!$F102="","",Eckdaten!$A$2-Tabelle1!$H102+1) ->  | J102: =IF(Tabelle1!$I102="","",Eckdaten!$A$2-K102+1) ->  | M102: =IF(L102="","",Eckdaten!$A$2-N102+1) ->  | P102: =IF(Tabelle1!$O102="","",Eckdaten!$A$2-Q102+1) ->  | S102: =IF(R102="","",Eckdaten!$A$2-T102+1) ->  | U102: =IF(V102="","",V102+(W102*Eckdaten!$A$9)) ->  | X102: =IF(V102="","",Eckdaten!$A$2-Y102+1) ->  | AA102: =IF(Tabelle1!$Z102="","",Eckdaten!$A$2-Tabelle1!$AB102+1) ->  | AD102: =IF(Tabelle1!$AC102="","",Eckdaten!$A$2-AE102+1) ->  | AF102: =SUM(Tabelle1!$S102,Tabelle1!$P102,Tabelle1!$M102,Tabelle1!$J102,Tabelle1!$G102,Tabelle1!$D102,AA102,AD102,X102) -> 0
A103: 45F | D103: =IF(Tabelle1!$C103="","",Eckdaten!$A$2-Tabelle1!$E103+1) ->  | G103: =IF(Tabelle1!$F103="","",Eckdaten!$A$2-Tabelle1!$H103+1) ->  | J103: =IF(Tabelle1!$I103="","",Eckdaten!$A$2-K103+1) ->  | M103: =IF(L103="","",Eckdaten!$A$2-N103+1) ->  | P103: =IF(Tabelle1!$O103="","",Eckdaten!$A$2-Q103+1) ->  | S103: =IF(R103="","",Eckdaten!$A$2-T103+1) ->  | U103: =IF(V103="","",V103+(W103*Eckdaten!$A$9)) ->  | X103: =IF(V103="","",Eckdaten!$A$2-Y103+1) ->  | AA103: =IF(Tabelle1!$Z103="","",Eckdaten!$A$2-Tabelle1!$AB103+1) ->  | AD103: =IF(Tabelle1!$AC103="","",Eckdaten!$A$2-AE103+1) ->  | AF103: =SUM(Tabelle1!$S103,Tabelle1!$P103,Tabelle1!$M103,Tabelle1!$J103,Tabelle1!$G103,Tabelle1!$D103,AA103,AD103,X103) -> 0
A104: 46F | D104: =IF(Tabelle1!$C104="","",Eckdaten!$A$2-Tabelle1!$E104+1) ->  | G104: =IF(Tabelle1!$F104="","",Eckdaten!$A$2-Tabelle1!$H104+1) ->  | J104: =IF(Tabelle1!$I104="","",Eckdaten!$A$2-K104+1) ->  | M104: =IF(L104="","",Eckdaten!$A$2-N104+1) ->  | P104: =IF(Tabelle1!$O104="","",Eckdaten!$A$2-Q104+1) ->  | S104: =IF(R104="","",Eckdaten!$A$2-T104+1) ->  | U104: =IF(V104="","",V104+(W104*Eckdaten!$A$9)) ->  | X104: =IF(V104="","",Eckdaten!$A$2-Y104+1) ->  | AA104: =IF(Tabelle1!$Z104="","",Eckdaten!$A$2-Tabelle1!$AB104+1) ->  | AD104: =IF(Tabelle1!$AC104="","",Eckdaten!$A$2-AE104+1) ->  | AF104: =SUM(Tabelle1!$S104,Tabelle1!$P104,Tabelle1!$M104,Tabelle1!$J104,Tabelle1!$G104,Tabelle1!$D104,AA104,AD104,X104) -> 0
A105: 47F | D105: =IF(Tabelle1!$C105="","",Eckdaten!$A$2-Tabelle1!$E105+1) ->  | G105: =IF(Tabelle1!$F105="","",Eckdaten!$A$2-Tabelle1!$H105+1) ->  | J105: =IF(Tabelle1!$I105="","",Eckdaten!$A$2-K105+1) ->  | M105: =IF(L105="","",Eckdaten!$A$2-N105+1) ->  | P105: =IF(Tabelle1!$O105="","",Eckdaten!$A$2-Q105+1) ->  | S105: =IF(R105="","",Eckdaten!$A$2-T105+1) ->  | U105: =IF(V105="","",V105+(W105*Eckdaten!$A$9)) ->  | X105: =IF(V105="","",Eckdaten!$A$2-Y105+1) ->  | AA105: =IF(Tabelle1!$Z105="","",Eckdaten!$A$2-Tabelle1!$AB105+1) ->  | AD105: =IF(Tabelle1!$AC105="","",Eckdaten!$A$2-AE105+1) ->  | AF105: =SUM(Tabelle1!$S105,Tabelle1!$P105,Tabelle1!$M105,Tabelle1!$J105,Tabelle1!$G105,Tabelle1!$D105,AA105,AD105,X105) -> 0
A106: 48F | D106: =IF(Tabelle1!$C106="","",Eckdaten!$A$2-Tabelle1!$E106+1) ->  | G106: =IF(Tabelle1!$F106="","",Eckdaten!$A$2-Tabelle1!$H106+1) ->  | J106: =IF(Tabelle1!$I106="","",Eckdaten!$A$2-K106+1) ->  | M106: =IF(L106="","",Eckdaten!$A$2-N106+1) ->  | P106: =IF(Tabelle1!$O106="","",Eckdaten!$A$2-Q106+1) ->  | S106: =IF(R106="","",Eckdaten!$A$2-T106+1) ->  | U106: =IF(V106="","",V106+(W106*Eckdaten!$A$9)) ->  | X106: =IF(V106="","",Eckdaten!$A$2-Y106+1) ->  | AA106: =IF(Tabelle1!$Z106="","",Eckdaten!$A$2-Tabelle1!$AB106+1) ->  | AD106: =IF(Tabelle1!$AC106="","",Eckdaten!$A$2-AE106+1) ->  | AF106: =SUM(Tabelle1!$S106,Tabelle1!$P106,Tabelle1!$M106,Tabelle1!$J106,Tabelle1!$G106,Tabelle1!$D106,AA106,AD106,X106) -> 0
A107: 49F | D107: =IF(Tabelle1!$C107="","",Eckdaten!$A$2-Tabelle1!$E107+1) ->  | G107: =IF(Tabelle1!$F107="","",Eckdaten!$A$2-Tabelle1!$H107+1) ->  | J107: =IF(Tabelle1!$I107="","",Eckdaten!$A$2-K107+1) ->  | M107: =IF(L107="","",Eckdaten!$A$2-N107+1) ->  | P107: =IF(Tabelle1!$O107="","",Eckdaten!$A$2-Q107+1) ->  | S107: =IF(R107="","",Eckdaten!$A$2-T107+1) ->  | U107: =IF(V107="","",V107+(W107*Eckdaten!$A$9)) ->  | X107: =IF(V107="","",Eckdaten!$A$2-Y107+1) ->  | AA107: =IF(Tabelle1!$Z107="","",Eckdaten!$A$2-Tabelle1!$AB107+1) ->  | AD107: =IF(Tabelle1!$AC107="","",Eckdaten!$A$2-AE107+1) ->  | AF107: =SUM(Tabelle1!$S107,Tabelle1!$P107,Tabelle1!$M107,Tabelle1!$J107,Tabelle1!$G107,Tabelle1!$D107,AA107,AD107,X107) -> 0
A108: 50F | D108: =IF(Tabelle1!$C108="","",Eckdaten!$A$2-Tabelle1!$E108+1) ->  | G108: =IF(Tabelle1!$F108="","",Eckdaten!$A$2-Tabelle1!$H108+1) ->  | J108: =IF(Tabelle1!$I108="","",Eckdaten!$A$2-K108+1) ->  | M108: =IF(L108="","",Eckdaten!$A$2-N108+1) ->  | P108: =IF(Tabelle1!$O108="","",Eckdaten!$A$2-Q108+1) ->  | S108: =IF(R108="","",Eckdaten!$A$2-T108+1) ->  | U108: =IF(V108="","",V108+(W108*Eckdaten!$A$9)) ->  | X108: =IF(V108="","",Eckdaten!$A$2-Y108+1) ->  | AA108: =IF(Tabelle1!$Z108="","",Eckdaten!$A$2-Tabelle1!$AB108+1) ->  | AD108: =IF(Tabelle1!$AC108="","",Eckdaten!$A$2-AE108+1) ->  | AF108: =SUM(Tabelle1!$S108,Tabelle1!$P108,Tabelle1!$M108,Tabelle1!$J108,Tabelle1!$G108,Tabelle1!$D108,AA108,AD108,X108) -> 0
A112: TEAM-Wertung
A113: Platz 1 | B113: =VLOOKUP(Teams!M4,Teams!$F$3:$K$61,2,FALSE) -> Team 6 | C113: =IF(Teams!O8>4,"ACHTUNG, RECHNUNG FALSCH!!! IN TABELLE 'TEAMS' ÜBERPRÜFEN!!!","") -> 
B114: =VLOOKUP(Tabelle1!$B$113,Teams!$A$3:$K$61,8,FALSE) -> Kastl Max
B115: =VLOOKUP(Tabelle1!$B$113,Teams!$A$3:$K$61,9,FALSE) -> Marina Stöttner | C115: mit einer Gesamtpunktezahl von
B116: =VLOOKUP(Tabelle1!$B$113,Teams!$A$3:$K$61,10,FALSE) -> Stefan Obergruber | C116: =VLOOKUP(Tabelle1!$B$113,Teams!$A$3:$K$61,11,FALSE) -> 929
A117: Platz 2 | B117: =VLOOKUP(Teams!M5,Teams!$F$3:$K$61,2,FALSE) -> Team 4
B118: =VLOOKUP(Tabelle1!$B$117,Teams!$A$3:$K$61,8,FALSE) -> Stefan Lehner
B119: =VLOOKUP(Tabelle1!$B$117,Teams!$A$3:$K$61,9,FALSE) -> Dominik Engleder | C119: mit einer Gesamtpunktezahl von
B120: =VLOOKUP(Tabelle1!$B$117,Teams!$A$3:$K$61,10,FALSE) -> Christian Pühringer | C120: =VLOOKUP(Tabelle1!$B$117,Teams!$A$3:$K$61,11,FALSE) -> 914
A121: Platz 3 | B121: =VLOOKUP(Teams!M6,Teams!F3:K61,2,FALSE) -> Team 5
B122: =VLOOKUP(Tabelle1!$B$121,Teams!$A$3:$K$61,8,FALSE) -> Patrick Martha
B123: =VLOOKUP(Tabelle1!$B$121,Teams!$A$3:$K$61,9,FALSE) -> David Gruber | C123: mit einer Gesamtpunktezahl von
B124: =VLOOKUP(Tabelle1!$B$121,Teams!$A$3:$K$61,10,FALSE) -> Alois Matha | C124: =VLOOKUP(Tabelle1!$B$121,Teams!$A$3:$K$61,11,FALSE) -> 896
A125: Platz 4 | B125: =VLOOKUP(Teams!M7,Teams!F3:K61,2,FALSE) -> Team 2
B126: =VLOOKUP(Tabelle1!$B$125,Teams!$A$3:$K$61,8,FALSE) -> Marco Hofstätter
B127: =VLOOKUP(Tabelle1!$B$125,Teams!$A$3:$K$61,9,FALSE) -> Bastian Enzenhofer | C127: mit einer Gesamtpunktezahl von
B128: =VLOOKUP(Tabelle1!$B$125,Teams!$A$3:$K$61,10,FALSE) -> Erich Haider | C128: =VLOOKUP(Tabelle1!$B$125,Teams!$A$3:$K$61,11,FALSE) -> 890

Sheet Teams
A1: TEAMS
M2: Reihung Suchkriterien | Q2: Verfügbare Namen
A3: Team 1 | B3: Starter | C3: 6M | D3: 17M | E3: 16M | G3: =A3 -> Team 1 | H3: =C4 -> Thomas Altmann | I3: =D4 -> Christian Natschläger | J3: =E4 -> Markus Kraml | K3: =F5 -> 778 | M3: 1. 4 Plätze | Q3: Männer | S3: Frauen
A4: Rang | B4: Namen | C4: =IF(ISNA(VLOOKUP(C3,Tabelle1!$A$5:$AG$153,2,FALSE)),"",VLOOKUP(C3,Tabelle1!$A$5:$AG$153,2,FALSE)) -> Thomas Altmann | D4: =IF(ISNA(VLOOKUP(D3,Tabelle1!$A$5:$AG$153,2,FALSE)),"",VLOOKUP(D3,Tabelle1!$A$5:$AG$153,2,FALSE)) -> Christian Natschläger | E4: =IF(ISNA(VLOOKUP(E3,Tabelle1!$A$5:$AG$153,2,FALSE)),"",VLOOKUP(E3,Tabelle1!$A$5:$AG$153,2,FALSE)) -> Markus Kraml | F4: Gesamtpunkte | M4: =MAX(F3:F61) -> 929 | O4: =COUNTIF(M4:M7,M4) -> 1 | Q4: =Tabelle1!A5 -> 1M | R4: =Tabelle1!B5 -> Stefan Lehner | S4: =Tabelle1!A59 -> 1F | T4: =Tabelle1!B59 -> Katharina Strasser
A5: =IF(F5=0,"",RANK(F5,$F$2:$F$1603,0)) -> 6 | B5: Punkte | C5: =IF(ISNA(VLOOKUP(C3,Tabelle1!$A$5:$AG$153,32,FALSE)),0,VLOOKUP(C3,Tabelle1!$A$5:$AG$153,32,FALSE)) -> 265 | D5: =IF(ISNA(VLOOKUP(D3,Tabelle1!$A$5:$AG$153,32,FALSE)),0,VLOOKUP(D3,Tabelle1!$A$5:$AG$153,32,FALSE)) -> 265 | E5: =IF(ISNA(VLOOKUP(E3,Tabelle1!$A$5:$AG$153,32,FALSE)),0,VLOOKUP(E3,Tabelle1!$A$5:$AG$153,32,FALSE)) -> 248 | F5: =SUM(C5+D5+E5) -> 778 | G5: =G3 -> Team 1 | H5: =H3 -> Thomas Altmann | I5: =I3 -> Christian Natschläger | J5: Markus Kraml | K5: 778 | M5: =LARGE($F$4:$F$104,2) -> 914 | O5: =COUNTIF(M4:M7,M5) -> 1 | Q5: =Tabelle1!A6 -> 2M | R5: =Tabelle1!B6 -> David Gruber | S5: =Tabelle1!A60 -> 2F | T5: =Tabelle1!B60 -> Magdalena Schürz
M6: =LARGE($F$4:$F$104,3) -> 896 | O6: =COUNTIF(M4:M7,M6) -> 1 | Q6: =Tabelle1!A7 -> 3M | R6: =Tabelle1!B7 -> Alois Matha | S6: =Tabelle1!A61 -> 3F | T6: =Tabelle1!B61 -> Marina Stöttner
A7: Team 2 | B7: Starter | C7: 9M | D7: 19M | E7: 18M | G7: =A7 -> Team 2 | H7: =C8 -> Marco Hofstätter | I7: =D8 -> Bastian Enzenhofer | J7: =E8 -> Erich Haider | K7: =F9 -> 890 | M7: =LARGE($F$4:$F$104,4) -> 890 | O7: =COUNTIF(M4:M7,M7) -> 1 | Q7: =Tabelle1!A8 -> 4M | R7: =Tabelle1!B8 -> Martin Reisinger | S7: =Tabelle1!A62 -> 4F | T7: =Tabelle1!B62 -> 0
A8: Rang | B8: Namen | C8: =IF(ISNA(VLOOKUP(C7,Tabelle1!$A$5:$AG$153,2,FALSE)),"",VLOOKUP(C7,Tabelle1!$A$5:$AG$153,2,FALSE)) -> Marco Hofstätter | D8: =IF(ISNA(VLOOKUP(D7,Tabelle1!$A$5:$AG$153,2,FALSE)),"",VLOOKUP(D7,Tabelle1!$A$5:$AG$153,2,FALSE)) -> Bastian Enzenhofer | E8: =IF(ISNA(VLOOKUP(E7,Tabelle1!$A$5:$AG$153,2,FALSE)),"",VLOOKUP(E7,Tabelle1!$A$5:$AG$153,2,FALSE)) -> Erich Haider | F8: Gesamtpunkte | O8: =SUM(O4:O7) -> 4 | Q8: =Tabelle1!A9 -> 5M | R8: =Tabelle1!B9 -> 0 | S8: =Tabelle1!A63 -> 5F | T8: =Tabelle1!B63 -> 0
A9: =IF(F9=0,"",RANK(F9,$F$2:$F$1603,0)) -> 4 | B9: Punkte | C9: =IF(ISNA(VLOOKUP(C7,Tabelle1!$A$5:$AG$153,32,FALSE)),0,VLOOKUP(C7,Tabelle1!$A$5:$AG$153,32,FALSE)) -> 318 | D9: =IF(ISNA(VLOOKUP(D7,Tabelle1!$A$5:$AG$153,32,FALSE)),0,VLOOKUP(D7,Tabelle1!$A$5:$AG$153,32,FALSE)) -> 284 | E9: =IF(ISNA(VLOOKUP(E7,Tabelle1!$A$5:$AG$153,32,FALSE)),0,VLOOKUP(E7,Tabelle1!$A$5:$AG$153,32,FALSE)) -> 288 | F9: =SUM(C9+D9+E9) -> 890 | G9: =G7 -> Team 2 | H9: =H7 -> Marco Hofstätter | I9: =I7 -> Bastian Enzenhofer | J9: Erich Haider | K9: 890 | Q9: =Tabelle1!A10 -> 6M | R9: =Tabelle1!B10 -> Thomas Altmann | S9: =Tabelle1!A64 -> 6F | T9: =Tabelle1!B64 -> 0
Q10: =Tabelle1!A11 -> 7M | R10: =Tabelle1!B11 -> Stefan Obergruber | S10: =Tabelle1!A65 -> 7F | T10: =Tabelle1!B65 -> 0
A11: Team 3 | B11: Starter | C11: 14M | D11: 13M | E11: 4M | G11: =A11 -> Team 3 | H11: =C12 -> Günther Pichler | I11: =D12 -> Thomas Lindorfer | J11: =E12 -> Martin Reisinger | K11: =F13 -> 829 | Q11: =Tabelle1!A12 -> 8M | R11: =Tabelle1!B12 -> Kastl Max | S11: =Tabelle1!A66 -> 8F | T11: =Tabelle1!B66 -> 0
A12: Rang | B12: Namen | C12: =IF(ISNA(VLOOKUP(C11,Tabelle1!$A$5:$AG$153,2,FALSE)),"",VLOOKUP(C11,Tabelle1!$A$5:$AG$153,2,FALSE)) -> Günther Pichler | D12: =IF(ISNA(VLOOKUP(D11,Tabelle1!$A$5:$AG$153,2,FALSE)),"",VLOOKUP(D11,Tabelle1!$A$5:$AG$153,2,FALSE)) -> Thomas Lindorfer | E12: =IF(ISNA(VLOOKUP(E11,Tabelle1!$A$5:$AG$153,2,FALSE)),"",VLOOKUP(E11,Tabelle1!$A$5:$AG$153,2,FALSE)) -> Martin Reisinger | F12: Gesamtpunkte | Q12: =Tabelle1!A13 -> 9M | R12: =Tabelle1!B13 -> Marco Hofstätter | S12: =Tabelle1!A67 -> 9F | T12: =Tabelle1!B67 -> 0
A13: =IF(F13=0,"",RANK(F13,$F$2:$F$1603,0)) -> 5 | B13: Punkte | C13: =IF(ISNA(VLOOKUP(C11,Tabelle1!$A$5:$AG$153,32,FALSE)),0,VLOOKUP(C11,Tabelle1!$A$5:$AG$153,32,FALSE)) -> 256 | D13: =IF(ISNA(VLOOKUP(D11,Tabelle1!$A$5:$AG$153,32,FALSE)),0,VLOOKUP(D11,Tabelle1!$A$5:$AG$153,32,FALSE)) -> 318 | E13: =IF(ISNA(VLOOKUP(E11,Tabelle1!$A$5:$AG$153,32,FALSE)),0,VLOOKUP(E11,Tabelle1!$A$5:$AG$153,32,FALSE)) -> 255 | F13: =SUM(C13+D13+E13) -> 829 | G13: =G11 -> Team 3 | H13: =H11 -> Günther Pichler | I13: =I11 -> Thomas Lindorfer | J13: Martin Reisinger | K13: 829 | Q13: =Tabelle1!A14 -> 10M | R13: =Tabelle1!B14 -> 0 | S13: =Tabelle1!A68 -> 10F | T13: =Tabelle1!B68 -> 0
Q14: =Tabelle1!A15 -> 11M | R14: =Tabelle1!B15 -> Christian Pühringer | S14: =Tabelle1!A69 -> 11F | T14: =Tabelle1!B69 -> 0
A15: Team 4 | B15: Starter | C15: 1M | D15: 15M | E15: 11m | G15: =A15 -> Team 4 | H15: =C16 -> Stefan Lehner | I15: =D16 -> Dominik Engleder | J15: =E16 -> Christian Pühringer | K15: =F17 -> 914 | Q15: =Tabelle1!A16 -> 12M | R15: =Tabelle1!B16 -> 0 | S15: =Tabelle1!A70 -> 12F | T15: =Tabelle1!B70 -> 0
A16: Rang | B16: Namen | C16: =IF(ISNA(VLOOKUP(C15,Tabelle1!$A$5:$AG$153,2,FALSE)),"",VLOOKUP(C15,Tabelle1!$A$5:$AG$153,2,FALSE)) -> Stefan Lehner | D16: =IF(ISNA(VLOOKUP(D15,Tabelle1!$A$5:$AG$153,2,FALSE)),"",VLOOKUP(D15,Tabelle1!$A$5:$AG$153,2,FALSE)) -> Dominik Engleder | E16: =IF(ISNA(VLOOKUP(E15,Tabelle1!$A$5:$AG$153,2,FALSE)),"",VLOOKUP(E15,Tabelle1!$A$5:$AG$153,2,FALSE)) -> Christian Pühringer | F16: Gesamtpunkte | Q16: =Tabelle1!A17 -> 13M | R16: =Tabelle1!B17 -> Thomas Lindorfer | S16: =Tabelle1!A71 -> 13F | T16: =Tabelle1!B71 -> 0
A17: =IF(F17=0,"",RANK(F17,$F$2:$F$1603,0)) -> 2 | B17: Punkte | C17: =IF(ISNA(VLOOKUP(C15,Tabelle1!$A$5:$AG$153,32,FALSE)),0,VLOOKUP(C15,Tabelle1!$A$5:$AG$153,32,FALSE)) -> 325 | D17: =IF(ISNA(VLOOKUP(D15,Tabelle1!$A$5:$AG$153,32,FALSE)),0,VLOOKUP(D15,Tabelle1!$A$5:$AG$153,32,FALSE)) -> 325 | E17: =IF(ISNA(VLOOKUP(E15,Tabelle1!$A$5:$AG$153,32,FALSE)),0,VLOOKUP(E15,Tabelle1!$A$5:$AG$153,32,FALSE)) -> 264 | F17: =SUM(C17+D17+E17) -> 914 | G17: =G15 -> Team 4 | H17: =H15 -> Stefan Lehner | I17: =I15 -> Dominik Engleder | J17: Christian Pühringer | K17: 914 | Q17: =Tabelle1!A18 -> 14M | R17: =Tabelle1!B18 -> Günther Pichler | S17: =Tabelle1!A72 -> 14F | T17: =Tabelle1!B72 -> 0
Q18: =Tabelle1!A19 -> 15M | R18: =Tabelle1!B19 -> Dominik Engleder | S18: =Tabelle1!A73 -> 15F | T18: =Tabelle1!B73 -> 0
A19: Team 5 | B19: Starter | C19: 20m | D19: 2m | E19: 3m | G19: =A19 -> Team 5 | H19: =C20 -> Patrick Martha | I19: =D20 -> David Gruber | J19: =E20 -> Alois Matha | K19: =F21 -> 896 | Q19: =Tabelle1!A20 -> 16M | R19: =Tabelle1!B20 -> Markus Kraml | S19: =Tabelle1!A74 -> 16F | T19: =Tabelle1!B74 -> 0
A20: Rang | B20: Namen | C20: =IF(ISNA(VLOOKUP(C19,Tabelle1!$A$5:$AG$153,2,FALSE)),"",VLOOKUP(C19,Tabelle1!$A$5:$AG$153,2,FALSE)) -> Patrick Martha | D20: =IF(ISNA(VLOOKUP(D19,Tabelle1!$A$5:$AG$153,2,FALSE)),"",VLOOKUP(D19,Tabelle1!$A$5:$AG$153,2,FALSE)) -> David Gruber | E20: =IF(ISNA(VLOOKUP(E19,Tabelle1!$A$5:$AG$153,2,FALSE)),"",VLOOKUP(E19,Tabelle1!$A$5:$AG$153,2,FALSE)) -> Alois Matha | F20: Gesamtpunkte | Q20: =Tabelle1!A21 -> 17M | R20: =Tabelle1!B21 -> Christian Natschläger | S20: =Tabelle1!A75 -> 17F | T20: =Tabelle1!B75 -> 0
A21: =IF(F21=0,"",RANK(F21,$F$2:$F$1603,0)) -> 3 | B21: Punkte | C21: =IF(ISNA(VLOOKUP(C19,Tabelle1!$A$5:$AG$153,32,FALSE)),0,VLOOKUP(C19,Tabelle1!$A$5:$AG$153,32,FALSE)) -> 293 | D21: =IF(ISNA(VLOOKUP(D19,Tabelle1!$A$5:$AG$153,32,FALSE)),0,VLOOKUP(D19,Tabelle1!$A$5:$AG$153,32,FALSE)) -> 301 | E21: =IF(ISNA(VLOOKUP(E19,Tabelle1!$A$5:$AG$153,32,FALSE)),0,VLOOKUP(E19,Tabelle1!$A$5:$AG$153,32,FALSE)) -> 302 | F21: =SUM(C21+D21+E21) -> 896 | G21: =G19 -> Team 5 | H21: =H19 -> Patrick Martha | I21: =I19 -> David Gruber | J21: Alois Matha | K21: 896 | Q21: =Tabelle1!A22 -> 18M | R21: =Tabelle1!B22 -> Erich Haider | S21: =Tabelle1!A76 -> 18F | T21: =Tabelle1!B76 -> 0
Q22: =Tabelle1!A23 -> 19M | R22: =Tabelle1!B23 -> Bastian Enzenhofer | S22: =Tabelle1!A77 -> 19F | T22: =Tabelle1!B77 -> 0
A23: Team 6 | B23: Starter | C23: 8m | D23: 3f | E23: 7m | G23: =A23 -> Team 6 | H23: =C24 -> Kastl Max | I23: =D24 -> Marina Stöttner | J23: =E24 -> Stefan Obergruber | K23: =F25 -> 929 | Q23: =Tabelle1!A24 -> 20M | R23: =Tabelle1!B24 -> Patrick Martha | S23: =Tabelle1!A78 -> 20F | T23: =Tabelle1!B78 -> 0
A24: Rang | B24: Namen | C24: =IF(ISNA(VLOOKUP(C23,Tabelle1!$A$5:$AG$153,2,FALSE)),"",VLOOKUP(C23,Tabelle1!$A$5:$AG$153,2,FALSE)) -> Kastl Max | D24: =IF(ISNA(VLOOKUP(D23,Tabelle1!$A$5:$AG$153,2,FALSE)),"",VLOOKUP(D23,Tabelle1!$A$5:$AG$153,2,FALSE)) -> Marina Stöttner | E24: =IF(ISNA(VLOOKUP(E23,Tabelle1!$A$5:$AG$153,2,FALSE)),"",VLOOKUP(E23,Tabelle1!$A$5:$AG$153,2,FALSE)) -> Stefan Obergruber | F24: Gesamtpunkte | Q24: =Tabelle1!A25 -> 21M | R24: =Tabelle1!B25 -> Mario Gahleitern | S24: =Tabelle1!A79 -> 21F | T24: =Tabelle1!B79 -> 0
A25: =IF(F25=0,"",RANK(F25,$F$2:$F$1603,0)) -> 1 | B25: Punkte | C25: =IF(ISNA(VLOOKUP(C23,Tabelle1!$A$5:$AG$153,32,FALSE)),0,VLOOKUP(C23,Tabelle1!$A$5:$AG$153,32,FALSE)) -> 304 | D25: =IF(ISNA(VLOOKUP(D23,Tabelle1!$A$5:$AG$153,32,FALSE)),0,VLOOKUP(D23,Tabelle1!$A$5:$AG$153,32,FALSE)) -> 347 | E25: =IF(ISNA(VLOOKUP(E23,Tabelle1!$A$5:$AG$153,32,FALSE)),0,VLOOKUP(E23,Tabelle1!$A$5:$AG$153,32,FALSE)) -> 278 | F25: =SUM(C25+D25+E25) -> 929 | G25: =G23 -> Team 6 | H25: =H23 -> Kastl Max | I25: =I23 -> Marina Stöttner | J25: Stefan Obergruber | K25: 929 | Q25: =Tabelle1!A26 -> 22M | R25: =Tabelle1!B26 -> Kevin Raab | S25: =Tabelle1!A80 -> 22F | T25: =Tabelle1!B80 -> 0
Q26: =Tabelle1!A27 -> 23M | R26: =Tabelle1!B27 -> 0 | S26: =Tabelle1!A81 -> 23F | T26: =Tabelle1!B81 -> 0
A27: Team 7 | B27: Starter | G27: =A27 -> Team 7 | H27: =C28 ->  | I27: =D28 ->  | J27: =E28 ->  | K27: =F29 -> 0 | Q27: =Tabelle1!A28 -> 24M | R27: =Tabelle1!B28 -> 0 | S27: =Tabelle1!A82 -> 24F | T27: =Tabelle1!B82 -> 0
A28: Rang | B28: Namen | C28: =IF(ISNA(VLOOKUP(C27,Tabelle1!$A$5:$AG$153,2,FALSE)),"",VLOOKUP(C27,Tabelle1!$A$5:$AG$153,2,FALSE)) ->  | D28: =IF(ISNA(VLOOKUP(D27,Tabelle1!$A$5:$AG$153,2,FALSE)),"",VLOOKUP(D27,Tabelle1!$A$5:$AG$153,2,FALSE)) ->  | E28: =IF(ISNA(VLOOKUP(E27,Tabelle1!$A$5:$AG$153,2,FALSE)),"",VLOOKUP(E27,Tabelle1!$A$5:$AG$153,2,FALSE)) ->  | F28: Gesamtpunkte | Q28: =Tabelle1!A29 -> 25M | R28: =Tabelle1!B29 -> 0 | S28: =Tabelle1!A83 -> 25F | T28: =Tabelle1!B83 -> 0
A29: =IF(F29=0,"",RANK(F29,$F$2:$F$1603,0)) ->  | B29: Punkte | C29: =IF(ISNA(VLOOKUP(C27,Tabelle1!$A$5:$AG$153,32,FALSE)),0,VLOOKUP(C27,Tabelle1!$A$5:$AG$153,32,FALSE)) -> 0 | D29: =IF(ISNA(VLOOKUP(D27,Tabelle1!$A$5:$AG$153,32,FALSE)),0,VLOOKUP(D27,Tabelle1!$A$5:$AG$153,32,FALSE)) -> 0 | E29: =IF(ISNA(VLOOKUP(E27,Tabelle1!$A$5:$AG$153,32,FALSE)),0,VLOOKUP(E27,Tabelle1!$A$5:$AG$153,32,FALSE)) -> 0 | F29: =SUM(C29+D29+E29) -> 0 | G29: =G27 -> Team 7 | H29: =H27 ->  | I29: =I27 ->  | K29: 0 | Q29: =Tabelle1!A30 -> 26M | R29: =Tabelle1!B30 -> 0 | S29: =Tabelle1!A84 -> 26F | T29: =Tabelle1!B84 -> 0
Q30: =Tabelle1!A31 -> 27M | R30: =Tabelle1!B31 -> 0 | S30: =Tabelle1!A85 -> 27F | T30: =Tabelle1!B85 -> 0
A31: Team 8 | B31: Starter | C31: 19M | G31: =A31 -> Team 8 | H31: =C32 -> Bastian Enzenhofer | I31: =D32 ->  | J31: =E32 ->  | K31: =F33 -> 284 | Q31: =Tabelle1!A32 -> 28M | R31: =Tabelle1!B32 -> 0 | S31: =Tabelle1!A86 -> 28F | T31: =Tabelle1!B86 -> 0
A32: Rang | B32: Namen | C32: =IF(ISNA(VLOOKUP(C31,Tabelle1!$A$5:$AG$153,2,FALSE)),"",VLOOKUP(C31,Tabelle1!$A$5:$AG$153,2,FALSE)) -> Bastian Enzenhofer | D32: =IF(ISNA(VLOOKUP(D31,Tabelle1!$A$5:$AG$153,2,FALSE)),"",VLOOKUP(D31,Tabelle1!$A$5:$AG$153,2,FALSE)) ->  | E32: =IF(ISNA(VLOOKUP(E31,Tabelle1!$A$5:$AG$153,2,FALSE)),"",VLOOKUP(E31,Tabelle1!$A$5:$AG$153,2,FALSE)) ->  | F32: Gesamtpunkte | Q32: =Tabelle1!A33 -> 29M | R32: =Tabelle1!B33 -> 0 | S32: =Tabelle1!A87 -> 29F | T32: =Tabelle1!B87 -> 0
A33: =IF(F33=0,"",RANK(F33,$F$2:$F$1603,0)) -> 7 | B33: Punkte | C33: =IF(ISNA(VLOOKUP(C31,Tabelle1!$A$5:$AG$153,32,FALSE)),0,VLOOKUP(C31,Tabelle1!$A$5:$AG$153,32,FALSE)) -> 284 | D33: =IF(ISNA(VLOOKUP(D31,Tabelle1!$A$5:$AG$153,32,FALSE)),0,VLOOKUP(D31,Tabelle1!$A$5:$AG$153,32,FALSE)) -> 0 | E33: =IF(ISNA(VLOOKUP(E31,Tabelle1!$A$5:$AG$153,32,FALSE)),0,VLOOKUP(E31,Tabelle1!$A$5:$AG$153,32,FALSE)) -> 0 | F33: =SUM(C33+D33+E33) -> 284 | G33: =G31 -> Team 8 | H33: =H31 -> Bastian Enzenhofer | I33: =I31 ->  | K33: 284 | Q33: =Tabelle1!A34 -> 30M | R33: =Tabelle1!B34 -> 0 | S33: =Tabelle1!A88 -> 30F | T33: =Tabelle1!B88 -> 0
Q34: =Tabelle1!A35 -> 31M | R34: =Tabelle1!B35 -> 0 | S34: =Tabelle1!A89 -> 31F | T34: =Tabelle1!B89 -> 0
A35: Team 9 | B35: Starter | G35: =A35 -> Team 9 | H35: =C36 ->  | I35: =D36 ->  | J35: =E36 ->  | K35: =F37 -> 0 | Q35: =Tabelle1!A36 -> 32M | R35: =Tabelle1!B36 -> 0 | S35: =Tabelle1!A90 -> 32F | T35: =Tabelle1!B90 -> 0
A36: Rang | B36: Namen | C36: =IF(ISNA(VLOOKUP(C35,Tabelle1!$A$5:$AG$153,2,FALSE)),"",VLOOKUP(C35,Tabelle1!$A$5:$AG$153,2,FALSE)) ->  | D36: =IF(ISNA(VLOOKUP(D35,Tabelle1!$A$5:$AG$153,2,FALSE)),"",VLOOKUP(D35,Tabelle1!$A$5:$AG$153,2,FALSE)) ->  | E36: =IF(ISNA(VLOOKUP(E35,Tabelle1!$A$5:$AG$153,2,FALSE)),"",VLOOKUP(E35,Tabelle1!$A$5:$AG$153,2,FALSE)) ->  | F36: Gesamtpunkte | Q36: =Tabelle1!A37 -> 33M | R36: =Tabelle1!B37 -> 0 | S36: =Tabelle1!A91 -> 33F | T36: =Tabelle1!B91 -> 0
A37: =IF(F37=0,"",RANK(F37,$F$2:$F$1603,0)) ->  | B37: Punkte | C37: =IF(ISNA(VLOOKUP(C35,Tabelle1!$A$5:$AG$153,32,FALSE)),0,VLOOKUP(C35,Tabelle1!$A$5:$AG$153,32,FALSE)) -> 0 | D37: =IF(ISNA(VLOOKUP(D35,Tabelle1!$A$5:$AG$153,32,FALSE)),0,VLOOKUP(D35,Tabelle1!$A$5:$AG$153,32,FALSE)) -> 0 | E37: =IF(ISNA(VLOOKUP(E35,Tabelle1!$A$5:$AG$153,32,FALSE)),0,VLOOKUP(E35,Tabelle1!$A$5:$AG$153,32,FALSE)) -> 0 | F37: =SUM(C37+D37+E37) -> 0 | G37: =G35 -> Team 9 | H37: =H35 ->  | I37: =I35 ->  | K37: 0 | Q37: =Tabelle1!A38 -> 34M | R37: =Tabelle1!B38 -> 0 | S37: =Tabelle1!A92 -> 34F | T37: =Tabelle1!B92 -> 0
Q38: =Tabelle1!A39 -> 35M | R38: =Tabelle1!B39 -> 0 | S38: =Tabelle1!A93 -> 35F | T38: =Tabelle1!B93 -> 0
A39: Team 10 | B39: Starter | G39: =A39 -> Team 10 | H39: =C40 ->  | I39: =D40 ->  | J39: =E40 ->  | K39: =F41 -> 0 | Q39: =Tabelle1!A40 -> 36M | R39: =Tabelle1!B40 -> 0 | S39: =Tabelle1!A94 -> 36F | T39: =Tabelle1!B94 -> 0
A40: Rang | B40: Namen | C40: =IF(ISNA(VLOOKUP(C39,Tabelle1!$A$5:$AG$153,2,FALSE)),"",VLOOKUP(C39,Tabelle1!$A$5:$AG$153,2,FALSE)) ->  | D40: =IF(ISNA(VLOOKUP(D39,Tabelle1!$A$5:$AG$153,2,FALSE)),"",VLOOKUP(D39,Tabelle1!$A$5:$AG$153,2,FALSE)) ->  | E40: =IF(ISNA(VLOOKUP(E39,Tabelle1!$A$5:$AG$153,2,FALSE)),"",VLOOKUP(E39,Tabelle1!$A$5:$AG$153,2,FALSE)) ->  | F40: Gesamtpunkte | Q40: =Tabelle1!A41 -> 37M | R40: =Tabelle1!B41 -> 0 | S40: =Tabelle1!A95 -> 37F | T40: =Tabelle1!B95 -> 0
A41: =IF(F41=0,"",RANK(F41,$F$2:$F$1603,0)) ->  | B41: Punkte | C41: =IF(ISNA(VLOOKUP(C39,Tabelle1!$A$5:$AG$153,32,FALSE)),0,VLOOKUP(C39,Tabelle1!$A$5:$AG$153,32,FALSE)) -> 0 | D41: =IF(ISNA(VLOOKUP(D39,Tabelle1!$A$5:$AG$153,32,FALSE)),0,VLOOKUP(D39,Tabelle1!$A$5:$AG$153,32,FALSE)) -> 0 | E41: =IF(ISNA(VLOOKUP(E39,Tabelle1!$A$5:$AG$153,32,FALSE)),0,VLOOKUP(E39,Tabelle1!$A$5:$AG$153,32,FALSE)) -> 0 | F41: =SUM(C41+D41+E41) -> 0 | G41: =G39 -> Team 10 | H41: =H39 ->  | I41: =I39 ->  | K41: 0 | Q41: =Tabelle1!A42 -> 38M | R41: =Tabelle1!B42 -> 0 | S41: =Tabelle1!A96 -> 38F | T41: =Tabelle1!B96 -> 0
Q42: =Tabelle1!A43 -> 39M | R42: =Tabelle1!B43 -> 0 | S42: =Tabelle1!A97 -> 39F | T42: =Tabelle1!B97 -> 0
A43: Team 11 | B43: Starter | G43: =A43 -> Team 11 | H43: =C44 ->  | I43: =D44 ->  | J43: =E44 ->  | K43: =F45 -> 0 | Q43: =Tabelle1!A44 -> 40M | R43: =Tabelle1!B44 -> 0 | S43: =Tabelle1!A98 -> 40F | T43: =Tabelle1!B98 -> 0
A44: Rang | B44: Namen | C44: =IF(ISNA(VLOOKUP(C43,Tabelle1!$A$5:$AG$153,2,FALSE)),"",VLOOKUP(C43,Tabelle1!$A$5:$AG$153,2,FALSE)) ->  | D44: =IF(ISNA(VLOOKUP(D43,Tabelle1!$A$5:$AG$153,2,FALSE)),"",VLOOKUP(D43,Tabelle1!$A$5:$AG$153,2,FALSE)) ->  | E44: =IF(ISNA(VLOOKUP(E43,Tabelle1!$A$5:$AG$153,2,FALSE)),"",VLOOKUP(E43,Tabelle1!$A$5:$AG$153,2,FALSE)) ->  | F44: Gesamtpunkte | Q44: =Tabelle1!A45 -> 41M | R44: =Tabelle1!B45 -> 0 | S44: =Tabelle1!A99 -> 41F | T44: =Tabelle1!B99 -> 0
A45: =IF(F45=0,"",RANK(F45,$F$2:$F$1603,0)) ->  | B45: Punkte | C45: =IF(ISNA(VLOOKUP(C43,Tabelle1!$A$5:$AG$153,32,FALSE)),0,VLOOKUP(C43,Tabelle1!$A$5:$AG$153,32,FALSE)) -> 0 | D45: =IF(ISNA(VLOOKUP(D43,Tabelle1!$A$5:$AG$153,32,FALSE)),0,VLOOKUP(D43,Tabelle1!$A$5:$AG$153,32,FALSE)) -> 0 | E45: =IF(ISNA(VLOOKUP(E43,Tabelle1!$A$5:$AG$153,32,FALSE)),0,VLOOKUP(E43,Tabelle1!$A$5:$AG$153,32,FALSE)) -> 0 | F45: =SUM(C45+D45+E45) -> 0 | G45: =G43 -> Team 11 | H45: =H43 ->  | I45: =I43 ->  | K45: 0 | Q45: =Tabelle1!A46 -> 42M | R45: =Tabelle1!B46 -> 0 | S45: =Tabelle1!A100 -> 42F | T45: =Tabelle1!B100 -> 0
Q46: =Tabelle1!A47 -> 43M | R46: =Tabelle1!B47 -> 0 | S46: =Tabelle1!A101 -> 43F | T46: =Tabelle1!B101 -> 0
A47: Team 12 | B47: Starter | G47: =A47 -> Team 12 | H47: =C48 ->  | I47: =D48 ->  | J47: =E48 ->  | K47: =F49 -> 0 | Q47: =Tabelle1!A48 -> 44M | R47: =Tabelle1!B48 -> 0 | S47: =Tabelle1!A102 -> 44F | T47: =Tabelle1!B102 -> 0
A48: Rang | B48: Namen | C48: =IF(ISNA(VLOOKUP(C47,Tabelle1!$A$5:$AG$153,2,FALSE)),"",VLOOKUP(C47,Tabelle1!$A$5:$AG$153,2,FALSE)) ->  | D48: =IF(ISNA(VLOOKUP(D47,Tabelle1!$A$5:$AG$153,2,FALSE)),"",VLOOKUP(D47,Tabelle1!$A$5:$AG$153,2,FALSE)) ->  | E48: =IF(ISNA(VLOOKUP(E47,Tabelle1!$A$5:$AG$153,2,FALSE)),"",VLOOKUP(E47,Tabelle1!$A$5:$AG$153,2,FALSE)) ->  | F48: Gesamtpunkte | Q48: =Tabelle1!A49 -> 45M | R48: =Tabelle1!B49 -> 0 | S48: =Tabelle1!A103 -> 45F | T48: =Tabelle1!B103 -> 0
A49: =IF(F49=0,"",RANK(F49,$F$2:$F$1603,0)) ->  | B49: Punkte | C49: =IF(ISNA(VLOOKUP(C47,Tabelle1!$A$5:$AG$153,32,FALSE)),0,VLOOKUP(C47,Tabelle1!$A$5:$AG$153,32,FALSE)) -> 0 | D49: =IF(ISNA(VLOOKUP(D47,Tabelle1!$A$5:$AG$153,32,FALSE)),0,VLOOKUP(D47,Tabelle1!$A$5:$AG$153,32,FALSE)) -> 0 | E49: =IF(ISNA(VLOOKUP(E47,Tabelle1!$A$5:$AG$153,32,FALSE)),0,VLOOKUP(E47,Tabelle1!$A$5:$AG$153,32,FALSE)) -> 0 | F49: =SUM(C49+D49+E49) -> 0 | G49: =G47 -> Team 12 | H49: =H47 ->  | I49: =I47 ->  | K49: 0 | Q49: =Tabelle1!A50 -> 46M | R49: =Tabelle1!B50 -> 0 | S49: =Tabelle1!A104 -> 46F | T49: =Tabelle1!B104 -> 0
Q50: =Tabelle1!A51 -> 47M | R50: =Tabelle1!B51 -> 0 | S50: =Tabelle1!A105 -> 47F | T50: =Tabelle1!B105 -> 0
A51: Team 13 | B51: Starter | G51: =A51 -> Team 13 | H51: =C52 ->  | I51: =D52 ->  | J51: =E52 ->  | K51: =F53 -> 0 | Q51: =Tabelle1!A52 -> 48M | R51: =Tabelle1!B52 -> 0 | S51: =Tabelle1!A106 -> 48F | T51: =Tabelle1!B106 -> 0
A52: Rang | B52: Namen | C52: =IF(ISNA(VLOOKUP(C51,Tabelle1!$A$5:$AG$153,2,FALSE)),"",VLOOKUP(C51,Tabelle1!$A$5:$AG$153,2,FALSE)) ->  | D52: =IF(ISNA(VLOOKUP(D51,Tabelle1!$A$5:$AG$153,2,FALSE)),"",VLOOKUP(D51,Tabelle1!$A$5:$AG$153,2,FALSE)) ->  | E52: =IF(ISNA(VLOOKUP(E51,Tabelle1!$A$5:$AG$153,2,FALSE)),"",VLOOKUP(E51,Tabelle1!$A$5:$AG$153,2,FALSE)) ->  | F52: Gesamtpunkte | Q52: =Tabelle1!A53 -> 49M | R52: =Tabelle1!B53 -> 0 | S52: =Tabelle1!A107 -> 49F | T52: =Tabelle1!B107 -> 0
A53: =IF(F53=0,"",RANK(F53,$F$2:$F$1603,0)) ->  | B53: Punkte | C53: =IF(ISNA(VLOOKUP(C51,Tabelle1!$A$5:$AG$153,32,FALSE)),0,VLOOKUP(C51,Tabelle1!$A$5:$AG$153,32,FALSE)) -> 0 | D53: =IF(ISNA(VLOOKUP(D51,Tabelle1!$A$5:$AG$153,32,FALSE)),0,VLOOKUP(D51,Tabelle1!$A$5:$AG$153,32,FALSE)) -> 0 | E53: =IF(ISNA(VLOOKUP(E51,Tabelle1!$A$5:$AG$153,32,FALSE)),0,VLOOKUP(E51,Tabelle1!$A$5:$AG$153,32,FALSE)) -> 0 | F53: =SUM(C53+D53+E53) -> 0 | G53: =G51 -> Team 13 | H53: =H51 ->  | I53: =I51 ->  | K53: 0 | Q53: =Tabelle1!A54 -> 50M | R53: =Tabelle1!B54 -> 0 | S53: =Tabelle1!A108 -> 50F | T53: =Tabelle1!B108 -> 0
A55: Team 14 | B55: Starter | G55: =A55 -> Team 14 | H55: =C56 ->  | I55: =D56 ->  | J55: =E56 ->  | K55: =F57 -> 0
A56: Rang | B56: Namen | C56: =IF(ISNA(VLOOKUP(C55,Tabelle1!$A$5:$AG$153,2,FALSE)),"",VLOOKUP(C55,Tabelle1!$A$5:$AG$153,2,FALSE)) ->  | D56: =IF(ISNA(VLOOKUP(D55,Tabelle1!$A$5:$AG$153,2,FALSE)),"",VLOOKUP(D55,Tabelle1!$A$5:$AG$153,2,FALSE)) ->  | E56: =IF(ISNA(VLOOKUP(E55,Tabelle1!$A$5:$AG$153,2,FALSE)),"",VLOOKUP(E55,Tabelle1!$A$5:$AG$153,2,FALSE)) ->  | F56: Gesamtpunkte
A57: =IF(F57=0,"",RANK(F57,$F$2:$F$1603,0)) ->  | B57: Punkte | C57: =IF(ISNA(VLOOKUP(C55,Tabelle1!$A$5:$AG$153,32,FALSE)),0,VLOOKUP(C55,Tabelle1!$A$5:$AG$153,32,FALSE)) -> 0 | D57: =IF(ISNA(VLOOKUP(D55,Tabelle1!$A$5:$AG$153,32,FALSE)),0,VLOOKUP(D55,Tabelle1!$A$5:$AG$153,32,FALSE)) -> 0 | E57: =IF(ISNA(VLOOKUP(E55,Tabelle1!$A$5:$AG$153,32,FALSE)),0,VLOOKUP(E55,Tabelle1!$A$5:$AG$153,32,FALSE)) -> 0 | F57: =SUM(C57+D57+E57) -> 0 | G57: =G55 -> Team 14 | H57: =H55 ->  | I57: =I55 ->  | K57: 0
A59: Team 15 | B59: Starter | G59: =G57 -> Team 14 | H59: =H57 ->  | I59: =I57 ->  | K59: 0
A60: Rang | B60: Namen | C60: =IF(ISNA(VLOOKUP(C59,Tabelle1!$A$5:$AG$153,2,FALSE)),"",VLOOKUP(C59,Tabelle1!$A$5:$AG$153,2,FALSE)) ->  | D60: =IF(ISNA(VLOOKUP(D59,Tabelle1!$A$5:$AG$153,2,FALSE)),"",VLOOKUP(D59,Tabelle1!$A$5:$AG$153,2,FALSE)) ->  | E60: =IF(ISNA(VLOOKUP(E59,Tabelle1!$A$5:$AG$153,2,FALSE)),"",VLOOKUP(E59,Tabelle1!$A$5:$AG$153,2,FALSE)) ->  | F60: Gesamtpunkte
A61: =IF(F61=0,"",RANK(F61,$F$2:$F$1603,0)) ->  | B61: Punkte | C61: =IF(ISNA(VLOOKUP(C59,Tabelle1!$A$5:$AG$153,32,FALSE)),0,VLOOKUP(C59,Tabelle1!$A$5:$AG$153,32,FALSE)) -> 0 | D61: =IF(ISNA(VLOOKUP(D59,Tabelle1!$A$5:$AG$153,32,FALSE)),0,VLOOKUP(D59,Tabelle1!$A$5:$AG$153,32,FALSE)) -> 0 | E61: =IF(ISNA(VLOOKUP(E59,Tabelle1!$A$5:$AG$153,32,FALSE)),0,VLOOKUP(E59,Tabelle1!$A$5:$AG$153,32,FALSE)) -> 0 | F61: =SUM(C61+D61+E61) -> 0 | G61: =A59 -> Team 15 | H61: =C60 ->  | I61: =D60 ->  | J61: =E60 ->  | K61: =F61 -> 0

Sheet Eckdaten (hidden)
A1: Teilnehmer
A2: 50
A4: Teilnehmer kommen weiter | AC4: =B4 -> 0
A5: von | B5: bis | AC5: =B5 -> bis
A6: 11 | B6: =A2 -> 50 | AC6: 50
AC7: 0
A8: Zeitstrafe heißer Draht | AC8: 0
A9: 3 | B9: sec je Berührung | AC9: sec je Berührung
AC10: 0
AC11: 0
AC12: 0
AC13: 0
AC14: 0
AC15: 0
AC16: 0
AC17: 0
AC18: 0
AC19: 0
AC20: 0
AC21: 0
AC22: 0
AC23: 0
AC24: 0
AC25: 0
AC26: 0
AC27: 0
AC28: 0
AC29: 0
AC30: 0
AC31: 0
AC32: 0
AC33: 0
AC34: 0
AC35: 0
AC36: 0
AC37: 0
AC38: 0
AC39: 0
AC40: 0
AC41: 0
AC42: 0
AC43: 0
AC44: 0
AC45: 0
AC46: 0
AC47: 0
AC48: 0
AC49: 0
AC50: 0
AC51: 0
AC52: 0
AC53: 0
